Workbook

Sheet Capacity Estimator
B3: Testing Site Capacity Estimator
C7: Content Management Information | H7: Launch of DRC INSIGHT
C9: Using COS Service Device for Content Hosting | D9: Yes - At the Site | N9: Average Time to Download Test Engine | O9: ='Capacity Estimator Calculations'!E44 -> 6.25 | P9: ='Capacity Estimator Calculations'!F44 -> Seconds
H11: Start of Test
C13: Testing Volume Information | N13: Average Time to Download a Fixed-Form Testing Form | O13: ='Capacity Estimator Calculations'!E100 -> 6.716666667 | P13: ='Capacity Estimator Calculations'!F100 -> Seconds
C15: Students Testing with Fixed-Form at the Same Time | D15: 490 | N15: Average Time to Download a CAT Form | O15: ='Capacity Estimator Calculations'!E102 -> 0 | P15: ='Capacity Estimator Calculations'!F102 -> Seconds
C17: Students Testing with CAT at the Same Time | D17: 0 | N17: Average Time to Download an Accommodated Testing Form | O17: ='Capacity Estimator Calculations'!E104 -> 3.383333333 | P17: ='Capacity Estimator Calculations'!F104 -> Seconds
C19: Accommodated Students Testing at the Same Time | D19: 210 | H19: During the Test
C21: Total Students Testing at the Same Time | D21: =SUM(D15:D20) -> 700 | N21: Average Wait Time Between Fixed-Form Items | O21: ='Capacity Estimator Calculations'!E174 -> 0.2532552067 | P21: ='Capacity Estimator Calculations'!F174 -> Seconds
N23: Average Wait Time Between CAT Form Items | O23: ='Capacity Estimator Calculations'!E176 -> 0 | P23: ='Capacity Estimator Calculations'!F176 -> Seconds
C25: Estimated % of Students Starting the Test at Nearly the Same Time | D25: 0.5 | N25: Average Wait Time Between Accommodated Form Items | O25: ='Capacity Estimator Calculations'!E178 -> 1.303255207 | P25: ='Capacity Estimator Calculations'!F178 -> Seconds
C27: Estimated % of Students Responding at Nearly the Same Time | D27: 0.1
C31: Network Information | H31: Good Performance | L31: Marginal Performance | P31: Poor Performance
C33: Internet Service Provider Connection Capacity | D33: 34000 | E33: (Mbps)
K34: Average Form Size per Test | M34: Average Size of Each Response | O34: Average Size of Next Item
C35: Wide Area Network (WAN) Connection Capacity | D35: 2000 | E35: (Mbps)
C37: Local Area Network (LAN) Connection Capacity | D37: 1000 | E37: (Mbps) | J37: Fixed-Form Test | K37: 2 | L37: MB | M37: 5 | N37: KB | O37: N/A | X37: 0 | Y37: KB
C39: Testing Devices Average Connection Speed | D39: 35 | E39: (Mbps) | J39: Computer-Adaptive Test (CAT) | K39: 700 | L39: KB | M39: 5 | N39: KB | O39: 25 | P39: KB
C41: Percent of Bandwidth Available for Testing | D41: 0.84 | J41: TTS, VSL, HVA Accommodation | K41: 1 | L41: MB | M41: 5 | N41: KB | O41: 1.5 | P41: MB
C43: Internet Response Time/Latency | D43: 0.25 | E43: (secs) | J43: Test Engine | K43: 3.6 | L43: MB
C45: WAN Response Time/Latency | D45: 0.1 | E45: (secs)
C47: LAN Response Time/Latency | D47: 0.05 | E47: (secs) | J47: Average CAT Scoring Process | K47: 0.275 | L47: (secs)
B49: Important: The Testing Site Capacity Estimator can only provide an estimate—it cannot factor in all possible variables and possible network traffic that can impact performance.
R50: ver. 4.0.1

Sheet Capacity Estimator Calculations
E2: Content
E3: $AC7+(($AB7*$W$2)*($K$2/($Q$2*$T$2)))
E5: Response
E6: $AC120+(($AB120*$X$2)*($O$2/($R$2*$T$2)))
E8: Cat Response
E9: $AC7+(($AB7*$X$2)*(($O$2+$P$2)/($R$2*$T$2)))+($G$2)
E13: AC | F13: Avg. network Latency
E14: AB | F14: # of Students
E15: W | F15: Estimated % of Students Starting the Test at the Exact Same Time
E16: X | F16: Estimated % of Students Processing Responses At Once (Think Time)
E17: K | F17: WBTE Size (Mbits)
E18: O | F18: Response Size (Mbits)
E19: Q | F19: DownLoad Bandwidth (Mbps)
F20: LAN | G20: Yes - At the Site | I20: Location of Content
F21: WAN | G21: Yes - At the District
F22: ISP | G22: No
E23: R | F23: UpLoad Bandwidth (Mbps)
E24: G | F24: Avg CAT Scoring Process (secs)
E25: T | F25: Percent of Bandwidth Available for Testing
B26: TRUE | C26: Hide latency detail | E26: Links to data on other sheet
B27: FALSE | C27: Hide content detail | E27: Calculations
B28: Test Engine Calucation
B29: A | C29: Avg. Internet Latency | E29: ='Capacity Estimator'!$D$43 -> 0.25 | F29: Currently only delivered via the Internet
B30: B | C30: # of Students | E30: ='Capacity Estimator'!$D$21 -> 700
B31: C | C31: Estimated % of Students Starting the Test at the Nearly Same Time | E31: ='Capacity Estimator'!$D$25 -> 0.5
B32: D | C32: Estimated number of Students Starting the Test at the Nearly Same Time - (B*C) | E32: =E30*E31 -> 350
B33: E | C33: Test Engine Size | E33: ='Capacity Estimator'!$K$43 -> 3.6 | F33: ='Capacity Estimator'!$L$43 -> MB | G33: =IF(F33="MB",E33,IF(F33="GB",E33*1024,E33*0.000976562)) -> 3.6 | H33: MB
B34: F | C34: Test Engine Size (Mbits) - (E*8) | E34: =8*G33 -> 28.8 | F34: Mb
B35: G | C35: Size of all Test Engine Payload | E35: =E32*E34 -> 10080 | F35: Mb
B36: H | C36: Location of Content - Test Engine currently comes from DRC via the Intenet - force to No | E36: No | H36: ='Capacity Estimator'!$D$9 -> Yes - At the Site
B37: I | C37: LAN - Yes - At the Site | E37: ='Capacity Estimator'!$D$37 -> 1000 | F37: (Mbps)
C38: WAN - Yes - At the District | E38: ='Capacity Estimator'!$D$35 -> 2000 | F38: (Mbps)
C39: ISP - No | E39: ='Capacity Estimator'!$D$33 -> 34000 | F39: (Mbps)
C40: DownLoad Bandwidth (Mbps) | E40: =IF(E36="Yes - At the Site",E37,IF(E36="Yes - at the District", E38,MIN(E38,E39))) -> 2000 | F40: (Mbps)
B41: J | C41: Percent of Bandwidth Available for Testing | E41: ='Capacity Estimator'!$D$41 -> 0.84
B42: K | C42: Average Available Download Bandwidth (Mbps) - (I*J) | E42: =E40*E41 -> 1680 | F42: (Mbps)
B43: L | C43: Avg Time to Download Test Engine - (A+(G/K)) | E43: =E29+(E35/E42) -> 6.25 | F43: Latency + (Total payload / Avg Available Download Bandwidth))
B44: M | C44: Average download time converted to Sec, Min or Hours | E44: =IF(E43>3600,E43/3600,IF(E43>60,E43/60,E43)) -> 6.25 | F44: =IF(E43>3600,I44,IF(E43>60,H44,G44)) -> Seconds | G44: Seconds | H44: Minutes | I44: Hours
B47: Type of testing as a percent of overall testing
D48: Form Content Percent | G48: Item Content Percent
C49: Total Fixed Form Testers | D49: ='Capacity Estimator'!$D$15 -> 490 | E49: =D49/$D$52 -> 0.7 | G49: ='Capacity Estimator'!$D$15*0 -> 0 | H49: =G49/$G$52 -> 0
C50: Total CAT Form Testers | D50: ='Capacity Estimator'!$D$17 -> 0 | E50: =D50/$D$52 -> 0 | G50: ='Capacity Estimator'!$D$17 -> 0 | H50: =G50/$G$52 -> 0
C51: Total Accommodated Form Testers | D51: ='Capacity Estimator'!$D$19 -> 210 | E51: =D51/$D$52 -> 0.3 | G51: ='Capacity Estimator'!$D$19 -> 210 | H51: =G51/$G$52 -> 1
C52: Total Testers | D52: =SUM(D49:D51) -> 700 | E52: =SUM(E49:E51) -> 1 | G52: =SUM(G49:G51) -> 210 | H52: =SUM(H49:H51) -> 1
B55: All Form Download Calucation
B56: Fixed Form Download Calucation
B57: A | C57: # of Students taking Fixed Form Test | E57: ='Capacity Estimator'!$D$15 -> 490
B58: B | C58: Estimated % of Students Starting the Test at the Nearly Same Time | E58: ='Capacity Estimator'!$D$25 -> 0.5
B59: C | C59: Estimated number of Students Starting the Test at the Nearly Same Time - (A*B) | E59: =E57*E58 -> 245
B60: D | C60: Form Size | E60: ='Capacity Estimator'!$K$37 -> 2 | F60: ='Capacity Estimator'!$L$37 -> MB | G60: =IF(F60="MB",E60,IF(F60="GB",E60*1024,E60*0.000976562)) -> 2 | H60: MB
B61: E | C61: Item Size (Mbits) - (D*8) | E61: =8*G60 -> 16 | F61: Mb
B62: F | C62: Size of all Fixed Forms Testing Form Content | E62: =E59*E61 -> 3920 | F62: Mb
B63: G | C63: Percent of all form content | E63: =E62/E84 -> 0.8235294118
B65: Computer Adaptive (CAT) Form Download Calucation
B66: A | C66: # of Students taking a Computer Adaptive Test | E66: ='Capacity Estimator'!$D$17 -> 0
B67: B | C67: Estimated % of Students Starting the Test at the Nearly Same Time | E67: ='Capacity Estimator'!$D$25 -> 0.5
B68: C | C68: Estimated number of Students Starting the Test at the Nearly Same Time - (A*B) | E68: =E66*E67 -> 0
B69: D | C69: Form Size | E69: ='Capacity Estimator'!$K$39 -> 700 | F69: ='Capacity Estimator'!$L$39 -> KB | G69: =IF(F69="MB",E69,IF(F69="GB",E69*1024,E69*0.000976562)) -> 0.6835934 | H69: MB
B70: E | C70: Item Size (Mbits) - (D*8) | E70: =8*G69 -> 5.4687472 | F70: Mb
B71: F | C71: Size of all CAT Form Content | E71: =E68*E70 -> 0 | F71: Mb
B72: G | C72: Percent of all form content | E72: =E71/E84 -> 0
B74: Accommodated Form Download Calucation
B75: A | C75: # of Students taking an Accommodated Test | E75: ='Capacity Estimator'!$D$19 -> 210
B76: B | C76: Estimated % of Students Starting the Test at the Nearly Same Time | E76: ='Capacity Estimator'!$D$25 -> 0.5
B77: C | C77: Estimated number of Students Starting the Test at the Nearly Same Time - (A*B) | E77: =E75*E76 -> 105
B78: D | C78: Form Size | E78: ='Capacity Estimator'!$K$41 -> 1 | F78: ='Capacity Estimator'!$L$41 -> MB | G78: =IF(F78="MB",E78,IF(F78="GB",E78*1024,E78*0.000976562)) -> 1 | H78: MB
B79: E | C79: Item Size (Mbits) - (D*8) | E79: =8*G78 -> 8 | F79: Mb
B80: F | C80: Size of all Accommodated Form Content | E80: =E77*E79 -> 840 | F80: Mb
B81: G | C81: Percent of all form content | E81: =E80/E84 -> 0.1764705882
B83: All Form Download Calucation
B84: G | C84: Total Form Size | E84: =E62+E71+E80 -> 4760 | F84: Mb
B85: H | C85: Location of Content - Using COS Service Device Content Hosting | E85: ='Capacity Estimator'!$D$9 -> Yes - At the Site
B86: I | C86: LAN - Yes - At the Site | E86: ='Capacity Estimator'!$D$47 -> 0.05 | F86: (Secs)
C87: WAN - Yes - At the District | E87: ='Capacity Estimator'!$D$45 -> 0.1 | F87: (Secs)
C88: ISP - No | E88: ='Capacity Estimator'!$D$43 -> 0.25 | F88: (Secs)
C89: Avg. Network Latency | E89: =IF(E85="Yes - At the Site",E86,IF(E85="Yes - at the District", E87,E88)) -> 0.05 | F89: (Secs)
B90: J | C90: LAN - Yes - At the Site | E90: ='Capacity Estimator'!$D$37 -> 1000 | F90: (Mbps)
C91: WAN - Yes - At the District | E91: ='Capacity Estimator'!$D$35 -> 2000 | F91: (Mbps)
C92: ISP - No | E92: ='Capacity Estimator'!$D$33 -> 34000 | F92: (Mbps)
C93: DownLoad Bandwidth (Mbps) | E93: =IF(E85="Yes - At the Site",E90,IF(E85="Yes - at the District", E91,MIN(E91,E92))) -> 1000 | F93: (Mbps)
B94: K | C94: Percent of Bandwidth Available for Testing | E94: ='Capacity Estimator'!$D$41 -> 0.84
B95: L | C95: Average Available Download Bandwidth (Mbps) - (J*K) | E95: =E93*E94 -> 840 | F95: (Mbps)
C96: Bandwidth (Mbps) Available for Fixed Form Downloads | D96: =$E$49 -> 0.7 | E96: =E95*D96 -> 588 | F96: (Mbps)
C97: Bandwidth (Mbps) Available for CAT Form Downloads | D97: =$E$50 -> 0 | E97: =E95*D97 -> 0 | F97: (Mbps)
C98: Bandwidth (Mbps) Available for Accommodated Form Downloads | D98: =$E$51 -> 0.3 | E98: =E95*D98 -> 252 | F98: (Mbps)
B99: M | C99: Avg Time to Download Fixed Form Content - (I+(G/L)) | E99: =IF(E57=0,0,E89+IFERROR((E62/E96),0)) -> 6.716666667
B100: N | C100: Average download time converted to Sec, Min or Hours | E100: =IF(E99>3600,E99/3600,IF(E99>60,E99/60,E99)) -> 6.716666667 | F100: =IF(E99>3600,I100,IF(E99>60,H100,G100)) -> Seconds | G100: Seconds | H100: Minutes | I100: Hours
B101: M | C101: Avg Time to Download CAT Form Content - (I+(G/L)) | E101: =IF(E66=0,0,E89+IFERROR((E71/E97),0)) -> 0
B102: N | C102: Average download time converted to Sec, Min or Hours | E102: =IF(E101>3600,E101/3600,IF(E101>60,E101/60,E101)) -> 0 | F102: =IF(E101>3600,I102,IF(E101>60,H102,G102)) -> Seconds | G102: Seconds | H102: Minutes | I102: Hours
B103: M | C103: Avg Time to Download Accommodated Form Content - (I+(G/L)) | E103: =IF(E75=0,0,E89+IFERROR((E80/E98),0)) -> 3.383333333
B104: N | C104: Average download time converted to Sec, Min or Hours | E104: =IF(E103>3600,E103/3600,IF(E103>60,E103/60,E103)) -> 3.383333333 | F104: =IF(E103>3600,I104,IF(E103>60,H104,G104)) -> Seconds | G104: Seconds | H104: Minutes | I104: Hours
B105: M | C105: Avg Time to Download Form Content - (I+(G/L)) | E105: =E89+(E84/E95) -> 5.716666667 | F105: Latency + (Total payload / Avg Available Download Bandwidth))
B106: N | C106: Average download time converted to Sec, Min or Hours | E106: =IF(E105>3600,E105/3600,IF(E105>60,E105/60,E105)) -> 5.716666667 | F106: =IF(E105>3600,I106,IF(E105>60,H106,G106)) -> Seconds | G106: Seconds | H106: Minutes | I106: Hours
B109: Response Time Between Items Calucation
B110: Fixed Form Item Download Calucation
B111: A | C111: # of Students taking Fixed Form Test | E111: ='Capacity Estimator'!$D$15 -> 490
B112: B | C112: Estimated % of Students Processing Responses At Once (Think Time) | E112: ='Capacity Estimator'!$D$27 -> 0.1
B113: C | C113: Estimated number of Students Starting the Test at the Nearly Same Time - (A*B) | E113: =E111*E112 -> 49
B114: D | C114: Item Size | E114: ='Capacity Estimator'!$X$37 -> 0 | F114: ='Capacity Estimator'!$Y$37 -> KB | G114: =IF(F114="MB",E114,IF(F114="GB",E114*1024,E114*0.000976562)) -> 0 | H114: MB
B115: E | C115: Item Size (Mbits) - (D*8) | E115: =8*G114 -> 0 | F115: Mb
B116: F | C116: Size of all Fixed Forms Testing Item Content | E116: =E113*E115 -> 0 | F116: Mb
B117: G | C117: Percent of all Item content | E117: =E116/E150 -> 0
B118: H | C118: Response Size | E118: ='Capacity Estimator'!$M$37 -> 5 | F118: ='Capacity Estimator'!$N$37 -> KB | G118: =IF(F118="MB",E118,IF(F118="GB",E118*1024,E118*0.000976562)) -> 0.00488281 | H118: MB
B119: I | C119: Item Size (Mbits) - (H*8) | E119: =8*G118 -> 0.03906248 | F119: Mb
B120: J | C120: Size of all Responses | E120: =E113*E119 -> 1.91406152 | F120: Mb
B121: K | C121: Size of all Fixed Forms Testing Item Content and Responses | E121: =E116+E120 -> 1.91406152 | F121: Mb
B123: Computer Adaptive (CAT) Form item Download Calucation
B124: A | C124: # of Students taking a Computer Adaptive Test | E124: ='Capacity Estimator'!$D$17 -> 0
B125: B | C125: Estimated % of Students Processing Responses At Once (Think Time) | E125: ='Capacity Estimator'!$D$27 -> 0.1
B126: C | C126: Estimated number of Students Starting the Test at the Nearly Same Time - (A*B) | E126: =E124*E125 -> 0
B127: D | C127: Item Size | E127: ='Capacity Estimator'!$O$39 -> 25 | F127: ='Capacity Estimator'!$P$39 -> KB | G127: =IF(F127="MB",E127,IF(F127="GB",E127*1024,E127*0.000976562)) -> 0.02441405 | H127: MB
B128: E | C128: Item Size (Mbits) - (D*8) | E128: =8*G127 -> 0.1953124 | F128: Mb
B129: F | C129: Size of all CAT Item Content | E129: =E126*E128 -> 0 | F129: Mb
B130: G | C130: Percent of all form content | E130: =E129/E150 -> 0
B131: H | C131: Response Size | E131: ='Capacity Estimator'!$M$39 -> 5 | F131: ='Capacity Estimator'!$N$39 -> KB | G131: =IF(F131="MB",E131,IF(F131="GB",E131*1024,E131*0.000976562)) -> 0.00488281 | H131: MB
B132: I | C132: Item Size (Mbits) - (H*8) | E132: =8*G131 -> 0.03906248 | F132: Mb
B133: J | C133: Size of all Responses | E133: =E126*E132 -> 0 | F133: Mb
B134: K | C134: Size of all CAT Forms Testing Item Content and Responses | E134: =E129+E133 -> 0 | F134: Mb
B136: Accommodated Form Item Download Calucation
B137: A | C137: # of Students taking an Accommodated Test | E137: ='Capacity Estimator'!$D$19 -> 210
B138: B | C138: Estimated % of Students Processing Responses At Once (Think Time) | E138: ='Capacity Estimator'!$D$27 -> 0.1
B139: C | C139: Estimated number of Students Starting the Test at the Nearly Same Time - (A*B) | E139: =E137*E138 -> 21
B140: D | C140: Item Size | E140: ='Capacity Estimator'!$O$41 -> 1.5 | F140: ='Capacity Estimator'!$P$41 -> MB | G140: =IF(F140="MB",E140,IF(F140="GB",E140*1024,E140*0.000976562)) -> 1.5 | H140: MB
B141: E | C141: Item Size (Mbits) - (D*8) | E141: =8*G140 -> 12 | F141: Mb
B142: F | C142: Size of all Accommodated Item Content | E142: =E139*E141 -> 252 | F142: Mb
B143: G | C143: Percent of all form content | E143: =E142/E150 -> 0.9892657847
B144: H | C144: Response Size | E144: ='Capacity Estimator'!$M$41 -> 5 | F144: ='Capacity Estimator'!$N$41 -> KB | G144: =IF(F144="MB",E144,IF(F144="GB",E144*1024,E144*0.000976562)) -> 0.00488281 | H144: MB
B145: I | C145: Item Size (Mbits) - (H*8) | E145: =8*G144 -> 0.03906248 | F145: Mb
B146: J | C146: Size of all Responses | E146: =E139*E145 -> 0.82031208 | F146: Mb
B147: K | C147: Size of all Accommodated Forms Testing Item Content and Responses | E147: =E142+E146 -> 252.8203121 | F147: Mb
B149: All Response Time Between Items Calucation
B150: G | C150: Total Item Size and response size | E150: =E121+E134+E147 -> 254.7343736 | F150: Mb
B151: H | C151: Location of Content - Using COS Service Device Content Hosting | E151: ='Capacity Estimator'!$D$9 -> Yes - At the Site
B152: I | C152: LAN - Yes - At the Site | E152: ='Capacity Estimator'!$D$47 -> 0.05 | F152: (Secs)
C153: WAN - Yes - At the District | E153: ='Capacity Estimator'!$D$45 -> 0.1 | F153: (Secs)
C154: ISP - No | E154: ='Capacity Estimator'!$D$43 -> 0.25 | F154: (Secs)
C155: Avg. Network Latency | E155: =IF(E151="Yes - At the Site",E152,IF(E151="Yes - at the District", E153,E154)) -> 0.05 | F155: (Secs)
B156: J | C156: LAN - Yes - At the Site | E156: ='Capacity Estimator'!$D$37 -> 1000 | F156: (Mbps)
C157: WAN - Yes - At the District | E157: ='Capacity Estimator'!$D$35 -> 2000 | F157: (Mbps)
C158: ISP - No | E158: ='Capacity Estimator'!$D$33 -> 34000 | F158: (Mbps)
C159: DownLoad Bandwidth (Mbps) | E159: =IF(E151="Yes - At the Site",E156,IF(E151="Yes - at the District", E157,MIN(E157,E158))) -> 1000 | F159: (Mbps)
B160: K | C160: Percent of Bandwidth Available for Testing | E160: ='Capacity Estimator'!$D$41 -> 0.84
B161: L | C161: Average Available Download Bandwidth (Mbps) - (J*K) | E161: =E159*E160 -> 840 | F161: (Mbps)
B162: M | C162: Bandwidth (Mbps) Available for Fixed Form Item Downloads | D162: =$E$49 -> 0.7 | E162: =E161*D162 -> 588 | F162: (Mbps)
C163: Bandwidth (Mbps) Available for CAT Item Downloads | D163: =$E$50 -> 0 | E163: =E161*D163 -> 0 | F163: (Mbps)
C164: Bandwidth (Mbps) Available for Accommodated Item Downloads | D164: =$E$51 -> 0.3 | E164: =E161*D164 -> 252 | F164: (Mbps)
B165: N | C165: Internet Latency for Responses + Item Latency from Content source | E165: =E154+E155 -> 0.3
B166: P | C166: Avg Time to Download Fixed Form Item Content and process response - (N-I+(K/M)) | E166: =IF(E111=0,0,E165-E155+IFERROR((E121/E162),0)) -> 0.2532552067 | F166: No item content download required
C167: Avg Time to Download CAT Item Content and process response - (N+(K/M)) | E167: =IF(E124=0,0,E165+IFERROR((E134/E163),0)) -> 0
C168: Avg Time to Download Accommodated Item Content and process response - (N+(K/M)) | E168: =IF(E137=0,0,E165+IFERROR((E147/E164),0)) -> 1.303255207
B169: Q | C169: Average time to process a Fixed Form score | E169: 0 | F169: (secs)
C170: Average time to process a CAT Form score | E170: =IF(E124=0,0,'Capacity Estimator'!$K$47) -> 0 | F170: ='Capacity Estimator'!$L$47 -> (secs)
C171: Average time to process an Accommodated Form score | E171: 0 | F171: (secs)
B173: P | C173: Average Wait Time Between Fixed Form Items - (N+O) | E173: =E166+E169 -> 0.2532552067
B174: Q | C174: Average download time converted to Sec, Min or Hours | E174: =IF(E173>3600,E173/3600,IF(E173>60,E173/60,E173)) -> 0.2532552067 | F174: =IF(E173>3600,I174,IF(E173>60,H174,G174)) -> Seconds | G174: Seconds | H174: Minutes | I174: Hours
B175: P | C175: Average Wait Time Between Fixed Form Items - (N+O) | E175: =E167+E170 -> 0
B176: Q | C176: Average download time converted to Sec, Min or Hours | E176: =IF(E175>3600,E175/3600,IF(E175>60,E175/60,E175)) -> 0 | F176: =IF(E175>3600,I176,IF(E175>60,H176,G176)) -> Seconds | G176: Seconds | H176: Minutes | I176: Hours
B177: P | C177: Average Wait Time Between Fixed Form Items - (N+O) | E177: =E168+E171 -> 1.303255207
B178: Q | C178: Average download time converted to Sec, Min or Hours | E178: =IF(E177>3600,E177/3600,IF(E177>60,E177/60,E177)) -> 1.303255207 | F178: =IF(E177>3600,I178,IF(E177>60,H178,G178)) -> Seconds | G178: Seconds | H178: Minutes | I178: Hours

Sheet Capacity Estimator Table (hidden)
A1: Test Engine Size | B1: ="Fixed Form Test Size (" & 'Capacity Estimator'!L37 & ")" -> Fixed Form Test Size (MB) | C1: ="Fixed Form Response Size (" & 'Capacity Estimator'!N37 & ")" -> Fixed Form Response Size (KB) | D1: ="CAT Form Test Size (" & 'Capacity Estimator'!L39 & ")" -> CAT Form Test Size (KB) | E1: ="Avg CAT Item Size (" & 'Capacity Estimator'!P39 & ")" -> Avg CAT Item Size (KB) | F1: ="CAT Form Response Size (" & 'Capacity Estimator'!N39 & ")" -> CAT Form Response Size (KB) | G1: Avg CAT Scoring Process (secs) | H1: ="Accommodation Form Test Size (" & 'Capacity Estimator'!P39 & ")" -> Accommodation Form Test Size (KB) | I1: ="Avg Accommodation Item Size (" & 'Capacity Estimator'!T35 & ")" -> Avg Accommodation Item Size () | J1: ="Accommodation Form Response Size (" & 'Capacity Estimator'!R35 & ")" -> Accommodation Form Response Size () | K1: WBTE Size (Mbits) | L1: Fixed Form Test Size (Mbits) | M1: CAT Form Test Size (Mbits) | N1: Total Download of WBTE & Form (Mbits) | O1: ` | P1: ="Avg CAT Item Size (Mbits)" -> Avg CAT Item Size (Mbits) | Q1: DownLoad Bandwidth (Mbps) | R1: UpLoad Bandwidth (Mbps) | S1: Local Area Network (LAN) Connection Speed (Mbps) | T1: Percent of Bandwidth Available for Testing | U1: TSM Download Response Time Factor | V1: TSM Upload Response Time Factor | W1: Estimated % of Students Starting the Test at the Exact Same Time | X1: Estimated % of Students Processing Responses At Once (Think Time) | Y1: Internet Response Time/Latency (secs) | Z1: WAN Response Time/Latency (secs) | AA1: LAN Response Time/Latency (secs) | AB1: # of Students | AC1: Avg. Internet Latency | AD1: Avg LAN Latency | AF1: ="Avg Time to Download Test Engine" -> Avg Time to Download Test Engine | AI1: ="Avg Fixed Form Download without Content Hosting" -> Avg Fixed Form Download without Content Hosting | AK1: ="Avg Fixed Form Download with Content Hosting" -> Avg Fixed Form Download with Content Hosting | AM1: ="Avg Fixed Form Test and Test Engine Download Time with Content Hosting" -> Avg Fixed Form Test and Test Engine Download Time with Content Hosting | AP1: ="Avg Wait Between Fixed Form Items" -> Avg Wait Between Fixed Form Items | AR1: ="Avg Wait Time Between Items with Response Caching " -> Avg Wait Time Between Items with Response Caching | AT1: Item Latency w/o Response Caching | AW1: ="Avg CAT Form Download without Content Hosting" -> Avg CAT Form Download without Content Hosting | AY1: ="Avg CAT Form Download with Content Hosting" -> Avg CAT Form Download with Content Hosting | BB1: ="Avg Wait Between CAT Items" -> Avg Wait Between CAT Items | BE1: ="Average Time to Download WBTE without Hosting" -> Average Time to Download WBTE without Hosting | BG1: ="Max Wait Time without TSM (" & 'Capacity Estimator'!$AL$93 & " MB Test)" -> Max Wait Time without TSM ( MB Test) | BH1: ="Average Wait Time without TSM (" & 'Capacity Estimator'!$AL$93 & " MB Test)" -> Average Wait Time without TSM ( MB Test) | BI1: ="Max Wait Time with TSM (" & 'Capacity Estimator'!$AL$93 & " MB Test)" -> Max Wait Time with TSM ( MB Test) | BJ1: ="Average Wait Time with TSM (" & 'Capacity Estimator'!$AL$93 & " MB Test)" -> Average Wait Time with TSM ( MB Test)
A2: ='Capacity Estimator'!K43 -> 3.6 | B2: ='Capacity Estimator'!K37 -> 2 | C2: ='Capacity Estimator'!M37 -> 5 | D2: ='Capacity Estimator'!K39 -> 700 | E2: ='Capacity Estimator'!O39 -> 25 | F2: ='Capacity Estimator'!M39 -> 5 | G2: 0.275 | H2: ='Capacity Estimator'!K41 -> 1 | I2: ='Capacity Estimator'!O41 -> 1.5 | J2: ='Capacity Estimator'!M41 -> 5 | K2: =8*A5 -> 28.8 | L2: =(8*B5) -> 16 | M2: =(8*D5) -> 5.4687472 | N2: =L2+(K2*0) -> 16 | O2: =8*C5 -> 0.03906248 | P2: =E5 -> 0.02441405 | Q2: =MIN('Capacity Estimator'!D33, 'Capacity Estimator'!D35) -> 2000 | R2: =MIN('Capacity Estimator'!D33, 'Capacity Estimator'!D35) -> 2000 | S2: ='Capacity Estimator'!D35 -> 2000 | T2: ='Capacity Estimator'!D41/100 -> 0.0084 | U2: 1 | V2: 1 | W2: ='Capacity Estimator'!D25 -> 0.5 | X2: ='Capacity Estimator'!D27 -> 0.1 | Y2: ='Capacity Estimator'!D43 -> 0.25 | Z2: ='Capacity Estimator'!D45 -> 0.1 | AA2: ='Capacity Estimator'!D47 -> 0.05 | AB2: 0 | AC2: 0 | AD2: 0 | AG2: =AC3 -> 0.25 | AJ2: =AC3 -> 0.25 | AK2: =$AB2*$L$2/$Q$2/$V$2 -> 0 | AM2: =AG2+AK2 -> 0.25 | AP2: 0.05 | AR2: 0 | AT2: 0 | AX2: =AC3 -> 0.25 | AY2: =$AB2*$L$2/$Q$2/$V$2 -> 0 | BB2: =(BB3+BC6)*0 -> 0
A3: ='Capacity Estimator'!L43 -> MB | B3: ='Capacity Estimator'!L37 -> MB | C3: ='Capacity Estimator'!N37 -> KB | D3: ='Capacity Estimator'!L39 -> KB | E3: ='Capacity Estimator'!P39 -> KB | F3: ='Capacity Estimator'!N39 -> KB | H3: ='Capacity Estimator'!L41 -> MB | I3: ='Capacity Estimator'!P41 -> MB | J3: ='Capacity Estimator'!N41 -> KB | Y3: 0 | Z3: 0 | AA3: 0 | AB3: =AB2+1 -> 1 | AC3: =IF($AB3<$Y$4,$Y$2,IF($Y$2-(AB3*$Y$3)>0,$Y$2-(AB3*$Y$3),0)) -> 0.25 | AD3: =IF($AB3<$AA$4,$AA$2,IF($AA$2-($AB3*$AA$3)>0,$AA$2-($AB3*$AA$3),0)) -> 0.05 | AF3: =$AC3+(($AB3*$W$2)*$K$2/($Q$2*$T$2)) -> 1.107142857 | AG3: =AG2-AF3 -> -0.8571428571 | AI3: =$AC3+(($AB3*$W$2)*$L$2/($Q$2*$T$2)) -> 0.7261904762 | AJ3: =AJ2-AI3 -> -0.4761904762 | AK3: =$AD3+(($AB3*$W$2)*$L$2/($S$2*$T$2)*$U$2) -> 0.5261904762 | AL3: =AK2-AK3 -> -0.5261904762 | AM3: =AF3+AK3 -> 1.633333333 | AN3: =AM2-AM3 -> -1.383333333 | AP3: =$AC3+(($AB3*$X$2)*($O$2/($R$2*$T$2))) -> 0.2502325148 | AQ3: =AP2-AP3 -> -0.2002325148 | AR3: =$AD3+(($AB3*$X$2)*$O$2/($S$2*$T$2)*$V$2) -> 0.05023251476 | AS3: =AR2-AR3 -> -0.05023251476 | AT3: =AD3 -> 0.05 | AU3: =AT2-AT3 -> -0.05 | AW3: =$AC3+(($AB3*$W$2)*$M$2/($Q$2*$T$2)) -> 0.4127603333 | AX3: =AX2-AW3 -> -0.1627603333 | AY3: =$AD3+(($AB3*$W$2)*$M$2/($S$2*$T$2)*$U$2) -> 0.2127603333 | AZ3: =AY2-AY3 -> -0.2127603333 | BB3: =$AC3+(($AB3*$X$2)*(($O$2+$P$2)/($R$2*$T$2)))+($G$2*1) -> 0.5253778365 | BC3: =BB2-BB3 -> -0.5253778365
U4: 0.4 | V4: 0.4 | Y4: 0 | Z4: 0 | AA4: 0 | AB4: 2 | AC4: =IF($AB4<$Y$4,$Y$2,(IF(($AC3-$Y$3)>0,$AC3-$Y$3,0))) -> 0.25 | AD4: =IF($AB4<$AA$4,$AA$2,(IF(($AD3-$AA$3)>0,$AD3-$AA$3,0))) -> 0.05 | AF4: =$AC4+(($AB4*$W$2)*$K$2/($Q$2*$T$2)) -> 1.964285714 | AG4: =AF3-AF4 -> -0.8571428571 | AI4: =$AC4+(($AB4*$W$2)*$L$2/($Q$2*$T$2)) -> 1.202380952 | AJ4: =AI3-AI4 -> -0.4761904762 | AK4: 1.002380952 | AL4: =AK3-AK4 -> -0.4761904762 | AM4: 2.966666667 | AN4: =AM3-AM4 -> -1.333333333 | AP4: =$AC4+(($AB4*$X$2)*($O$2/($R$2*$T$2))) -> 0.2504650295 | AQ4: =AP3-AP4 -> -0.0002325147619 | AR4: 0.05046502952 | AS4: =AR3-AR4 -> -0.0002325147619 | AT4: =AD4 -> 0.05 | AU4: =AT3-AT4 -> 0 | AW4: =$AC4+(($AB4*$W$2)*$M$2/($Q$2*$T$2)) -> 0.5755206667 | AX4: =AW3-AW4 -> -0.1627603333 | AY4: =$AD4+(($AB4*$W$2)*$M$2/($S$2*$T$2)*$U$2) -> 0.3755206667 | AZ4: =AY3-AY4 -> -0.1627603333 | BB4: =$AC4+(($AB4*$X$2)*(($O$2+$P$2)/($R$2*$T$2)))+($G$2*1) -> 0.525755673 | BC4: =BB3-BB4 -> -0.0003778364881
A5: =IF(A3="MB",A2,IF(A3="GB",A2*1024,A2*0.000976562)) -> 3.6 | B5: 2 | C5: 0.00488281 | D5: 0.6835934 | E5: 0.02441405 | F5: 0.00488281 | H5: =IF(H3="MB",H2,IF(H3="GB",H2*1024,H2*0.000976562)) -> 1 | I5: =IF(I3="MB",I2,IF(I3="GB",I2*1024,I2*0.000976562)) -> 1.5 | J5: =IF(J3="MB",J2,IF(J3="GB",J2*1024,J2*0.000976562)) -> 0.00488281 | O5: Size to use without Hosting (Download both WBTE Engine & Form from DRC) | AB5: 3 | AC5: =IF($AB5<$Y$4,$Y$2,(IF(($AC4-$Y$3)>0,$AC4-$Y$3,0))) -> 0.25 | AD5: =IF($AB5<$AA$4,$AA$2,(IF(($AD4-$AA$3)>0,$AD4-$AA$3,0))) -> 0.05 | AF5: =$AC5+(($AB5*$W$2)*$K$2/($Q$2*$T$2)) -> 2.821428571 | AG5: -0.8571428571 | AI5: =$AC5+(($AB5*$W$2)*$L$2/($Q$2*$T$2)) -> 1.678571429 | AJ5: =AI4-AI5 -> -0.4761904762 | AK5: 1.478571429 | AL5: -0.4761904762 | AM5: 4.3 | AN5: -1.333333333 | AP5: 0.2506975443 | AQ5: =AP4-AP5 -> -0.0002325147619 | AR5: 0.05069754429 | AS5: -0.0002325147619 | AT5: 0.05 | AU5: 0 | AW5: =$AC5+(($AB5*$W$2)*$M$2/($Q$2*$T$2)) -> 0.738281 | AX5: =AW4-AW5 -> -0.1627603333 | AY5: 0.538281 | AZ5: =AY4-AY5 -> -0.1627603333 | BB5: 0.5261335095 | BC5: =BB4-BB5 -> -0.0003778364881
A6: MB | B6: MB | C6: MB | D6: MB | E6: MB | F6: MB | H6: MB | I6: MB | J6: MB | N6: Use with Content Hosting for CAT form download from TSM | AB6: 4 | AC6: 0.25 | AD6: 0.05 | AF6: 3.678571429 | AG6: -0.8571428571 | AI6: 2.154761905 | AJ6: -0.4761904762 | AK6: 1.954761905 | AL6: -0.4761904762 | AM6: 5.633333333 | AN6: -1.333333333 | AP6: 0.250930059 | AQ6: -0.0002325147619 | AR6: 0.05093005905 | AS6: -0.0002325147619 | AT6: 0.05 | AU6: 0 | AW6: 0.9010413333 | AX6: -0.1627603333 | AY6: 0.7010413333 | AZ6: -0.1627603333 | BB6: 0.526511346 | BC6: -0.0003778364881
M7: Use with Content Hosting for Fixed form download from TSM | Y7: =Y2*1000 -> 250 | Z7: =Z2*1000 -> 100 | AA7: =AA2*1000 -> 50 | AB7: 5 | AC7: 0.25 | AD7: 0.05 | AF7: 4.535714286 | AG7: -0.8571428571 | AI7: 2.630952381 | AJ7: -0.4761904762 | AK7: 2.430952381 | AL7: -0.4761904762 | AM7: 6.966666667 | AN7: -1.333333333 | AP7: 0.2511625738 | AQ7: -0.0002325147619 | AR7: 0.05116257381 | AS7: -0.0002325147619 | AT7: 0.05 | AU7: 0 | AW7: 1.063801667 | AX7: -0.1627603333 | AY7: 0.8638016667 | AZ7: -0.1627603333 | BB7: 0.5268891824 | BC7: -0.0003778364881
L8: Use with Hosting for WBTE Engine download from DRC | Y8: Milliseconds | Z8: Milliseconds | AA8: Milliseconds | AB8: 6 | AC8: 0.25 | AD8: 0.05 | AF8: 5.392857143 | AG8: -0.8571428571 | AI8: 3.107142857 | AJ8: -0.4761904762 | AK8: 2.907142857 | AL8: -0.4761904762 | AM8: 8.3 | AN8: -1.333333333 | AP8: 0.2513950886 | AQ8: -0.0002325147619 | AR8: 0.05139508857 | AS8: -0.0002325147619 | AT8: 0.05 | AU8: 0 | AW8: 1.226562 | AX8: -0.1627603333 | AY8: 1.026562 | AZ8: -0.1627603333 | BB8: 0.5272670189 | BC8: -0.0003778364881
A9: T1 | B9: 1.544 | C9: Mbits/sec | F9: Mbits/sec | J9: Mbits/sec | AB9: 7 | AC9: 0.25 | AD9: 0.05 | AF9: 6.25 | AG9: -0.8571428571 | AI9: 3.583333333 | AJ9: -0.4761904762 | AK9: 3.383333333 | AL9: -0.4761904762 | AM9: 9.633333333 | AN9: -1.333333333 | AP9: 0.2516276033 | AQ9: -0.0002325147619 | AR9: 0.05162760333 | AS9: -0.0002325147619 | AT9: 0.05 | AU9: 0 | AW9: 1.389322333 | AX9: -0.1627603333 | AY9: 1.189322333 | AZ9: -0.1627603333 | BB9: 0.5276448554 | BC9: -0.0003778364881
A10: T2 | B10: 6.312 | C10: Mbits/sec | F10: Mbits/sec | J10: Mbits/sec | S10: Minimum of upload Speed and LAN Speed | AB10: 8 | AC10: 0.25 | AD10: 0.05 | AF10: 7.107142857 | AG10: -0.8571428571 | AI10: 4.05952381 | AJ10: -0.4761904762 | AK10: 3.85952381 | AL10: -0.4761904762 | AM10: 10.96666667 | AN10: -1.333333333 | AP10: 0.2518601181 | AQ10: -0.0002325147619 | AR10: =$AD10+(($AB10*$X$2)*$O$2/($S$2*$T$2)*$V$2) -> 0.0518601181 | AS10: -0.0002325147619 | AT10: 0.05 | AU10: 0 | AW10: 1.552082667 | AX10: -0.1627603333 | AY10: 1.352082667 | AZ10: -0.1627603333 | BB10: 0.5280226919 | BC10: -0.0003778364881
A11: T3 | B11: 44.736 | C11: Mbits/sec | F11: Mbits/sec | J11: Mbits/sec | AB11: 9 | AC11: 0.25 | AD11: 0.05 | AF11: 7.964285714 | AG11: -0.8571428571 | AI11: 4.535714286 | AJ11: -0.4761904762 | AK11: 4.335714286 | AL11: -0.4761904762 | AM11: 12.3 | AN11: -1.333333333 | AP11: 0.2520926329 | AQ11: -0.0002325147619 | AR11: 0.05209263286 | AS11: -0.0002325147619 | AT11: 0.05 | AU11: 0 | AW11: 1.714843 | AX11: -0.1627603333 | AY11: 1.514843 | AZ11: -0.1627603333 | BB11: 0.5284005284 | BC11: -0.0003778364881
R12: Minimum of Download Speed and LAN Speed | AB12: 10 | AC12: 0.25 | AD12: 0.05 | AF12: 8.821428571 | AG12: -0.8571428571 | AI12: 5.011904762 | AJ12: -0.4761904762 | AK12: 4.811904762 | AL12: -0.4761904762 | AM12: 13.63333333 | AN12: -1.333333333 | AP12: 0.2523251476 | AQ12: -0.0002325147619 | AR12: 0.05232514762 | AS12: -0.0002325147619 | AT12: 0.05 | AU12: 0 | AW12: 1.877603333 | AX12: -0.1627603333 | AY12: 1.677603333 | AZ12: -0.1627603333 | BB12: 0.5287783649 | BC12: -0.0003778364881
AB13: 11 | AC13: 0.25 | AD13: 0.05 | AF13: 9.678571429 | AG13: -0.8571428571 | AI13: 5.488095238 | AJ13: -0.4761904762 | AK13: 5.288095238 | AL13: -0.4761904762 | AM13: 14.96666667 | AN13: -1.333333333 | AP13: 0.2525576624 | AQ13: -0.0002325147619 | AR13: 0.05255766238 | AS13: -0.0002325147619 | AT13: 0.05 | AU13: 0 | AW13: 2.040363667 | AX13: -0.1627603333 | AY13: 1.840363667 | AZ13: -0.1627603333 | BB13: 0.5291562014 | BC13: -0.0003778364881
AB14: 12 | AC14: 0.25 | AD14: 0.05 | AF14: 10.53571429 | AG14: -0.8571428571 | AI14: 5.964285714 | AJ14: -0.4761904762 | AK14: 5.764285714 | AL14: -0.4761904762 | AM14: 16.3 | AN14: -1.333333333 | AP14: 0.2527901771 | AQ14: -0.0002325147619 | AR14: 0.05279017714 | AS14: -0.0002325147619 | AT14: 0.05 | AU14: 0 | AW14: 2.203124 | AX14: -0.1627603333 | AY14: 2.003124 | AZ14: -0.1627603333 | BB14: 0.5295340379 | BC14: -0.0003778364881
AB15: 13 | AC15: 0.25 | AD15: 0.05 | AF15: 11.39285714 | AG15: -0.8571428571 | AI15: 6.44047619 | AJ15: -0.4761904762 | AK15: 6.24047619 | AL15: -0.4761904762 | AM15: 17.63333333 | AN15: -1.333333333 | AP15: 0.2530226919 | AQ15: -0.0002325147619 | AR15: 0.0530226919 | AS15: -0.0002325147619 | AT15: 0.05 | AU15: 0 | AW15: 2.365884333 | AX15: -0.1627603333 | AY15: 2.165884333 | AZ15: -0.1627603333 | BB15: 0.5299118743 | BC15: -0.0003778364881
AB16: 14 | AC16: 0.25 | AD16: 0.05 | AF16: 12.25 | AG16: -0.8571428571 | AI16: 6.916666667 | AJ16: -0.4761904762 | AK16: 6.716666667 | AL16: -0.4761904762 | AM16: 18.96666667 | AN16: -1.333333333 | AP16: 0.2532552067 | AQ16: -0.0002325147619 | AR16: 0.05325520667 | AS16: -0.0002325147619 | AT16: 0.05 | AU16: 0 | AW16: 2.528644667 | AX16: -0.1627603333 | AY16: 2.328644667 | AZ16: -0.1627603333 | BB16: 0.5302897108 | BC16: -0.0003778364881
AB17: 15 | AC17: 0.25 | AD17: 0.05 | AF17: 13.10714286 | AG17: -0.8571428571 | AI17: 7.392857143 | AJ17: -0.4761904762 | AK17: 7.192857143 | AL17: -0.4761904762 | AM17: 20.3 | AN17: -1.333333333 | AP17: 0.2534877214 | AQ17: -0.0002325147619 | AR17: 0.05348772143 | AS17: -0.0002325147619 | AT17: 0.05 | AU17: 0 | AW17: 2.691405 | AX17: -0.1627603333 | AY17: 2.491405 | AZ17: -0.1627603333 | BB17: 0.5306675473 | BC17: -0.0003778364881
AB18: 16 | AC18: 0.25 | AD18: 0.05 | AF18: 13.96428571 | AG18: -0.8571428571 | AI18: 7.869047619 | AJ18: -0.4761904762 | AK18: 7.669047619 | AL18: -0.4761904762 | AM18: 21.63333333 | AN18: -1.333333333 | AP18: 0.2537202362 | AQ18: -0.0002325147619 | AR18: 0.05372023619 | AS18: -0.0002325147619 | AT18: 0.05 | AU18: 0 | AW18: 2.854165333 | AX18: -0.1627603333 | AY18: 2.654165333 | AZ18: -0.1627603333 | BB18: 0.5310453838 | BC18: -0.0003778364881
AB19: 17 | AC19: 0.25 | AD19: 0.05 | AF19: 14.82142857 | AG19: -0.8571428571 | AI19: 8.345238095 | AJ19: -0.4761904762 | AK19: 8.145238095 | AL19: -0.4761904762 | AM19: 22.96666667 | AN19: -1.333333333 | AP19: 0.253952751 | AQ19: -0.0002325147619 | AR19: 0.05395275095 | AS19: -0.0002325147619 | AT19: 0.05 | AU19: 0 | AW19: 3.016925667 | AX19: -0.1627603333 | AY19: 2.816925667 | AZ19: -0.1627603333 | BB19: 0.5314232203 | BC19: -0.0003778364881
AB20: 18 | AC20: 0.25 | AD20: 0.05 | AF20: 15.67857143 | AG20: -0.8571428571 | AI20: 8.821428571 | AJ20: -0.4761904762 | AK20: 8.621428571 | AL20: -0.4761904762 | AM20: 24.3 | AN20: -1.333333333 | AP20: 0.2541852657 | AQ20: -0.0002325147619 | AR20: 0.05418526571 | AS20: -0.0002325147619 | AT20: 0.05 | AU20: 0 | AW20: 3.179686 | AX20: -0.1627603333 | AY20: 2.979686 | AZ20: -0.1627603333 | BB20: 0.5318010568 | BC20: -0.0003778364881
AB21: 19 | AC21: 0.25 | AD21: 0.05 | AF21: 16.53571429 | AG21: -0.8571428571 | AI21: 9.297619048 | AJ21: -0.4761904762 | AK21: 9.097619048 | AL21: -0.4761904762 | AM21: 25.63333333 | AN21: -1.333333333 | AP21: 0.2544177805 | AQ21: -0.0002325147619 | AR21: 0.05441778048 | AS21: -0.0002325147619 | AT21: 0.05 | AU21: 0 | AW21: 3.342446333 | AX21: -0.1627603333 | AY21: 3.142446333 | AZ21: -0.1627603333 | BB21: 0.5321788933 | BC21: -0.0003778364881
AB22: 20 | AC22: 0.25 | AD22: 0.05 | AF22: 17.39285714 | AG22: -0.8571428571 | AI22: 9.773809524 | AJ22: -0.4761904762 | AK22: 9.573809524 | AL22: -0.4761904762 | AM22: 26.96666667 | AN22: -1.333333333 | AP22: 0.2546502952 | AQ22: -0.0002325147619 | AR22: 0.05465029524 | AS22: -0.0002325147619 | AT22: 0.05 | AU22: 0 | AW22: 3.505206667 | AX22: -0.1627603333 | AY22: 3.305206667 | AZ22: -0.1627603333 | BB22: 0.5325567298 | BC22: -0.0003778364881
AB23: 21 | AC23: 0.25 | AD23: 0.05 | AF23: 18.25 | AG23: -0.8571428571 | AI23: 10.25 | AJ23: -0.4761904762 | AK23: 10.05 | AL23: -0.4761904762 | AM23: 28.3 | AN23: -1.333333333 | AP23: 0.25488281 | AQ23: -0.0002325147619 | AR23: 0.05488281 | AS23: -0.0002325147619 | AT23: 0.05 | AU23: 0 | AW23: 3.667967 | AX23: -0.1627603333 | AY23: 3.467967 | AZ23: -0.1627603333 | BB23: 0.5329345663 | BC23: -0.0003778364881
AB24: 22 | AC24: 0.25 | AD24: 0.05 | AF24: 19.10714286 | AG24: -0.8571428571 | AI24: 10.72619048 | AJ24: -0.4761904762 | AK24: 10.52619048 | AL24: -0.4761904762 | AM24: 29.63333333 | AN24: -1.333333333 | AP24: 0.2551153248 | AQ24: -0.0002325147619 | AR24: 0.05511532476 | AS24: -0.0002325147619 | AT24: 0.05 | AU24: 0 | AW24: 3.830727333 | AX24: -0.1627603333 | AY24: 3.630727333 | AZ24: -0.1627603333 | BB24: 0.5333124027 | BC24: -0.0003778364881
AB25: 23 | AC25: 0.25 | AD25: 0.05 | AF25: 19.96428571 | AG25: -0.8571428571 | AI25: 11.20238095 | AJ25: -0.4761904762 | AK25: 11.00238095 | AL25: -0.4761904762 | AM25: 30.96666667 | AN25: -1.333333333 | AP25: 0.2553478395 | AQ25: -0.0002325147619 | AR25: 0.05534783952 | AS25: -0.0002325147619 | AT25: 0.05 | AU25: 0 | AW25: 3.993487667 | AX25: -0.1627603333 | AY25: 3.793487667 | AZ25: -0.1627603333 | BB25: 0.5336902392 | BC25: -0.0003778364881
AB26: 24 | AC26: 0.25 | AD26: 0.05 | AF26: 20.82142857 | AG26: -0.8571428571 | AI26: 11.67857143 | AJ26: -0.4761904762 | AK26: 11.47857143 | AL26: -0.4761904762 | AM26: 32.3 | AN26: -1.333333333 | AP26: 0.2555803543 | AQ26: -0.0002325147619 | AR26: 0.05558035429 | AS26: -0.0002325147619 | AT26: 0.05 | AU26: 0 | AW26: 4.156248 | AX26: -0.1627603333 | AY26: 3.956248 | AZ26: -0.1627603333 | BB26: 0.5340680757 | BC26: -0.0003778364881
AB27: 25 | AC27: 0.25 | AD27: 0.05 | AF27: 21.67857143 | AG27: -0.8571428571 | AI27: 12.1547619 | AJ27: -0.4761904762 | AK27: 11.9547619 | AL27: -0.4761904762 | AM27: 33.63333333 | AN27: -1.333333333 | AP27: 0.255812869 | AQ27: -0.0002325147619 | AR27: 0.05581286905 | AS27: -0.0002325147619 | AT27: 0.05 | AU27: 0 | AW27: 4.319008333 | AX27: -0.1627603333 | AY27: 4.119008333 | AZ27: -0.1627603333 | BB27: 0.5344459122 | BC27: -0.0003778364881
AB28: 26 | AC28: 0.25 | AD28: 0.05 | AF28: 22.53571429 | AG28: -0.8571428571 | AI28: 12.63095238 | AJ28: -0.4761904762 | AK28: 12.43095238 | AL28: -0.4761904762 | AM28: 34.96666667 | AN28: -1.333333333 | AP28: 0.2560453838 | AQ28: -0.0002325147619 | AR28: 0.05604538381 | AS28: -0.0002325147619 | AT28: 0.05 | AU28: 0 | AW28: 4.481768667 | AX28: -0.1627603333 | AY28: 4.281768667 | AZ28: -0.1627603333 | BB28: 0.5348237487 | BC28: -0.0003778364881
AB29: 27 | AC29: 0.25 | AD29: 0.05 | AF29: 23.39285714 | AG29: -0.8571428571 | AI29: 13.10714286 | AJ29: -0.4761904762 | AK29: 12.90714286 | AL29: -0.4761904762 | AM29: 36.3 | AN29: -1.333333333 | AP29: 0.2562778986 | AQ29: -0.0002325147619 | AR29: 0.05627789857 | AS29: -0.0002325147619 | AT29: 0.05 | AU29: 0 | AW29: 4.644529 | AX29: -0.1627603333 | AY29: 4.444529 | AZ29: -0.1627603333 | BB29: 0.5352015852 | BC29: -0.0003778364881
AB30: 28 | AC30: 0.25 | AD30: 0.05 | AF30: 24.25 | AG30: -0.8571428571 | AI30: 13.58333333 | AJ30: -0.4761904762 | AK30: 13.38333333 | AL30: -0.4761904762 | AM30: 37.63333333 | AN30: -1.333333333 | AP30: 0.2565104133 | AQ30: -0.0002325147619 | AR30: 0.05651041333 | AS30: -0.0002325147619 | AT30: 0.05 | AU30: 0 | AW30: 4.807289333 | AX30: -0.1627603333 | AY30: 4.607289333 | AZ30: -0.1627603333 | BB30: 0.5355794217 | BC30: -0.0003778364881
AB31: =AB30+1 -> 29 | AC31: =IF($AB31<$Y$4,$Y$2,(IF(($AC30-$Y$3)>0,$AC30-$Y$3,0))) -> 0.25 | AD31: =IF($AB31<$AA$4,$AA$2,(IF(($AD30-$AA$3)>0,$AD30-$AA$3,0))) -> 0.05 | AF31: 25.10714286 | AG31: =AF30-AF31 -> -0.8571428571 | AI31: 14.05952381 | AJ31: =AI30-AI31 -> -0.4761904762 | AK31: 13.85952381 | AL31: =AK30-AK31 -> -0.4761904762 | AM31: 38.96666667 | AN31: =AM30-AM31 -> -1.333333333 | AP31: 0.2567429281 | AQ31: =AP30-AP31 -> -0.0002325147619 | AR31: 0.0567429281 | AS31: =AR30-AR31 -> -0.0002325147619 | AT31: 0.05 | AU31: =AT30-AT31 -> 0 | AW31: 4.970049667 | AX31: =AW30-AW31 -> -0.1627603333 | AY31: 4.770049667 | AZ31: =AY30-AY31 -> -0.1627603333 | BB31: 0.5359572582 | BC31: =BB30-BB31 -> -0.0003778364881
AB32: 30 | AC32: 0.25 | AD32: 0.05 | AF32: 25.96428571 | AG32: -0.8571428571 | AI32: 14.53571429 | AJ32: -0.4761904762 | AK32: 14.33571429 | AL32: -0.4761904762 | AM32: 40.3 | AN32: -1.333333333 | AP32: 0.2569754429 | AQ32: -0.0002325147619 | AR32: 0.05697544286 | AS32: -0.0002325147619 | AT32: 0.05 | AU32: 0 | AW32: 5.13281 | AX32: -0.1627603333 | AY32: 4.93281 | AZ32: -0.1627603333 | BB32: 0.5363350946 | BC32: -0.0003778364881
AB33: 31 | AC33: 0.25 | AD33: 0.05 | AF33: 26.82142857 | AG33: -0.8571428571 | AI33: 15.01190476 | AJ33: -0.4761904762 | AK33: 14.81190476 | AL33: -0.4761904762 | AM33: 41.63333333 | AN33: -1.333333333 | AP33: 0.2572079576 | AQ33: -0.0002325147619 | AR33: 0.05720795762 | AS33: -0.0002325147619 | AT33: 0.05 | AU33: 0 | AW33: 5.295570333 | AX33: -0.1627603333 | AY33: 5.095570333 | AZ33: -0.1627603333 | BB33: 0.5367129311 | BC33: -0.0003778364881
AB34: 32 | AC34: 0.25 | AD34: 0.05 | AF34: 27.67857143 | AG34: -0.8571428571 | AI34: 15.48809524 | AJ34: -0.4761904762 | AK34: 15.28809524 | AL34: -0.4761904762 | AM34: 42.96666667 | AN34: -1.333333333 | AP34: 0.2574404724 | AQ34: -0.0002325147619 | AR34: 0.05744047238 | AS34: -0.0002325147619 | AT34: 0.05 | AU34: 0 | AW34: 5.458330667 | AX34: -0.1627603333 | AY34: 5.258330667 | AZ34: -0.1627603333 | BB34: 0.5370907676 | BC34: -0.0003778364881
AB35: 33 | AC35: 0.25 | AD35: 0.05 | AF35: 28.53571429 | AG35: -0.8571428571 | AI35: 15.96428571 | AJ35: -0.4761904762 | AK35: 15.76428571 | AL35: -0.4761904762 | AM35: 44.3 | AN35: -1.333333333 | AP35: 0.2576729871 | AQ35: -0.0002325147619 | AR35: 0.05767298714 | AS35: -0.0002325147619 | AT35: 0.05 | AU35: 0 | AW35: 5.621091 | AX35: -0.1627603333 | AY35: 5.421091 | AZ35: -0.1627603333 | BB35: 0.5374686041 | BC35: -0.0003778364881
AB36: 34 | AC36: 0.25 | AD36: 0.05 | AF36: 29.39285714 | AG36: -0.8571428571 | AI36: 16.44047619 | AJ36: -0.4761904762 | AK36: 16.24047619 | AL36: -0.4761904762 | AM36: 45.63333333 | AN36: -1.333333333 | AP36: 0.2579055019 | AQ36: -0.0002325147619 | AR36: 0.0579055019 | AS36: -0.0002325147619 | AT36: 0.05 | AU36: 0 | AW36: 5.783851333 | AX36: -0.1627603333 | AY36: 5.583851333 | AZ36: -0.1627603333 | BB36: 0.5378464406 | BC36: -0.0003778364881
AB37: 35 | AC37: 0.25 | AD37: 0.05 | AF37: 30.25 | AG37: -0.8571428571 | AI37: 16.91666667 | AJ37: -0.4761904762 | AK37: 16.71666667 | AL37: -0.4761904762 | AM37: 46.96666667 | AN37: -1.333333333 | AP37: 0.2581380167 | AQ37: -0.0002325147619 | AR37: 0.05813801667 | AS37: -0.0002325147619 | AT37: 0.05 | AU37: 0 | AW37: 5.946611667 | AX37: -0.1627603333 | AY37: 5.746611667 | AZ37: -0.1627603333 | BB37: 0.5382242771 | BC37: -0.0003778364881
AB38: 36 | AC38: 0.25 | AD38: 0.05 | AF38: 31.10714286 | AG38: -0.8571428571 | AI38: 17.39285714 | AJ38: -0.4761904762 | AK38: 17.19285714 | AL38: -0.4761904762 | AM38: 48.3 | AN38: -1.333333333 | AP38: 0.2583705314 | AQ38: -0.0002325147619 | AR38: 0.05837053143 | AS38: -0.0002325147619 | AT38: 0.05 | AU38: 0 | AW38: 6.109372 | AX38: -0.1627603333 | AY38: 5.909372 | AZ38: -0.1627603333 | BB38: 0.5386021136 | BC38: -0.0003778364881
AB39: 37 | AC39: 0.25 | AD39: 0.05 | AF39: 31.96428571 | AG39: -0.8571428571 | AI39: 17.86904762 | AJ39: -0.4761904762 | AK39: 17.66904762 | AL39: -0.4761904762 | AM39: 49.63333333 | AN39: -1.333333333 | AP39: 0.2586030462 | AQ39: -0.0002325147619 | AR39: 0.05860304619 | AS39: -0.0002325147619 | AT39: 0.05 | AU39: 0 | AW39: 6.272132333 | AX39: -0.1627603333 | AY39: 6.072132333 | AZ39: -0.1627603333 | BB39: 0.5389799501 | BC39: -0.0003778364881
AB40: 38 | AC40: 0.25 | AD40: 0.05 | AF40: 32.82142857 | AG40: -0.8571428571 | AI40: 18.3452381 | AJ40: -0.4761904762 | AK40: 18.1452381 | AL40: -0.4761904762 | AM40: 50.96666667 | AN40: -1.333333333 | AP40: 0.258835561 | AQ40: -0.0002325147619 | AR40: 0.05883556095 | AS40: -0.0002325147619 | AT40: 0.05 | AU40: 0 | AW40: 6.434892667 | AX40: -0.1627603333 | AY40: 6.234892667 | AZ40: -0.1627603333 | BB40: 0.5393577865 | BC40: -0.0003778364881
AB41: 39 | AC41: 0.25 | AD41: 0.05 | AF41: 33.67857143 | AG41: -0.8571428571 | AI41: 18.82142857 | AJ41: -0.4761904762 | AK41: 18.62142857 | AL41: -0.4761904762 | AM41: 52.3 | AN41: -1.333333333 | AP41: 0.2590680757 | AQ41: -0.0002325147619 | AR41: 0.05906807571 | AS41: -0.0002325147619 | AT41: 0.05 | AU41: 0 | AW41: 6.597653 | AX41: -0.1627603333 | AY41: 6.397653 | AZ41: -0.1627603333 | BB41: 0.539735623 | BC41: -0.0003778364881
AB42: 40 | AC42: 0.25 | AD42: 0.05 | AF42: 34.53571429 | AG42: -0.8571428571 | AI42: 19.29761905 | AJ42: -0.4761904762 | AK42: 19.09761905 | AL42: -0.4761904762 | AM42: 53.63333333 | AN42: -1.333333333 | AP42: 0.2593005905 | AQ42: -0.0002325147619 | AR42: 0.05930059048 | AS42: -0.0002325147619 | AT42: 0.05 | AU42: 0 | AW42: 6.760413333 | AX42: -0.1627603333 | AY42: 6.560413333 | AZ42: -0.1627603333 | BB42: 0.5401134595 | BC42: -0.0003778364881
AB43: 41 | AC43: 0.25 | AD43: 0.05 | AF43: 35.39285714 | AG43: -0.8571428571 | AI43: 19.77380952 | AJ43: -0.4761904762 | AK43: 19.57380952 | AL43: -0.4761904762 | AM43: 54.96666667 | AN43: -1.333333333 | AP43: 0.2595331052 | AQ43: -0.0002325147619 | AR43: 0.05953310524 | AS43: -0.0002325147619 | AT43: 0.05 | AU43: 0 | AW43: 6.923173667 | AX43: -0.1627603333 | AY43: 6.723173667 | AZ43: -0.1627603333 | BB43: 0.540491296 | BC43: -0.0003778364881
AB44: 42 | AC44: 0.25 | AD44: 0.05 | AF44: 36.25 | AG44: -0.8571428571 | AI44: 20.25 | AJ44: -0.4761904762 | AK44: 20.05 | AL44: -0.4761904762 | AM44: 56.3 | AN44: -1.333333333 | AP44: 0.25976562 | AQ44: -0.0002325147619 | AR44: 0.05976562 | AS44: -0.0002325147619 | AT44: 0.05 | AU44: 0 | AW44: 7.085934 | AX44: -0.1627603333 | AY44: 6.885934 | AZ44: -0.1627603333 | BB44: 0.5408691325 | BC44: -0.0003778364881
AB45: 43 | AC45: 0.25 | AD45: 0.05 | AF45: 37.10714286 | AG45: -0.8571428571 | AI45: 20.72619048 | AJ45: -0.4761904762 | AK45: 20.52619048 | AL45: -0.4761904762 | AM45: 57.63333333 | AN45: -1.333333333 | AP45: 0.2599981348 | AQ45: -0.0002325147619 | AR45: 0.05999813476 | AS45: -0.0002325147619 | AT45: 0.05 | AU45: 0 | AW45: 7.248694333 | AX45: -0.1627603333 | AY45: 7.048694333 | AZ45: -0.1627603333 | BB45: 0.541246969 | BC45: -0.0003778364881
AB46: 44 | AC46: 0.25 | AD46: 0.05 | AF46: 37.96428571 | AG46: -0.8571428571 | AI46: 21.20238095 | AJ46: -0.4761904762 | AK46: 21.00238095 | AL46: -0.4761904762 | AM46: 58.96666667 | AN46: -1.333333333 | AP46: 0.2602306495 | AQ46: -0.0002325147619 | AR46: 0.06023064952 | AS46: -0.0002325147619 | AT46: 0.05 | AU46: 0 | AW46: 7.411454667 | AX46: -0.1627603333 | AY46: 7.211454667 | AZ46: -0.1627603333 | BB46: 0.5416248055 | BC46: -0.0003778364881
AB47: 45 | AC47: 0.25 | AD47: 0.05 | AF47: 38.82142857 | AG47: -0.8571428571 | AI47: 21.67857143 | AJ47: -0.4761904762 | AK47: 21.47857143 | AL47: -0.4761904762 | AM47: 60.3 | AN47: -1.333333333 | AP47: 0.2604631643 | AQ47: -0.0002325147619 | AR47: 0.06046316429 | AS47: -0.0002325147619 | AT47: 0.05 | AU47: 0 | AW47: 7.574215 | AX47: -0.1627603333 | AY47: 7.374215 | AZ47: -0.1627603333 | BB47: 0.542002642 | BC47: -0.0003778364881
AB48: 46 | AC48: 0.25 | AD48: 0.05 | AF48: 39.67857143 | AG48: -0.8571428571 | AI48: 22.1547619 | AJ48: -0.4761904762 | AK48: 21.9547619 | AL48: -0.4761904762 | AM48: 61.63333333 | AN48: -1.333333333 | AP48: 0.260695679 | AQ48: -0.0002325147619 | AR48: 0.06069567905 | AS48: -0.0002325147619 | AT48: 0.05 | AU48: 0 | AW48: 7.736975333 | AX48: -0.1627603333 | AY48: 7.536975333 | AZ48: -0.1627603333 | BB48: 0.5423804785 | BC48: -0.0003778364881
AB49: 47 | AC49: 0.25 | AD49: 0.05 | AF49: 40.53571429 | AG49: -0.8571428571 | AI49: 22.63095238 | AJ49: -0.4761904762 | AK49: 22.43095238 | AL49: -0.4761904762 | AM49: 62.96666667 | AN49: -1.333333333 | AP49: 0.2609281938 | AQ49: -0.0002325147619 | AR49: 0.06092819381 | AS49: -0.0002325147619 | AT49: 0.05 | AU49: 0 | AW49: 7.899735667 | AX49: -0.1627603333 | AY49: 7.699735667 | AZ49: -0.1627603333 | BB49: 0.5427583149 | BC49: -0.0003778364881
AB50: 48 | AC50: 0.25 | AD50: 0.05 | AF50: 41.39285714 | AG50: -0.8571428571 | AI50: 23.10714286 | AJ50: -0.4761904762 | AK50: 22.90714286 | AL50: -0.4761904762 | AM50: 64.3 | AN50: -1.333333333 | AP50: 0.2611607086 | AQ50: -0.0002325147619 | AR50: 0.06116070857 | AS50: -0.0002325147619 | AT50: 0.05 | AU50: 0 | AW50: 8.062496 | AX50: -0.1627603333 | AY50: 7.862496 | AZ50: -0.1627603333 | BB50: 0.5431361514 | BC50: -0.0003778364881
AB51: 49 | AC51: 0.25 | AD51: 0.05 | AF51: 42.25 | AG51: -0.8571428571 | AI51: 23.58333333 | AJ51: -0.4761904762 | AK51: 23.38333333 | AL51: -0.4761904762 | AM51: 65.63333333 | AN51: -1.333333333 | AP51: 0.2613932233 | AQ51: -0.0002325147619 | AR51: 0.06139322333 | AS51: -0.0002325147619 | AT51: 0.05 | AU51: 0 | AW51: 8.225256333 | AX51: -0.1627603333 | AY51: 8.025256333 | AZ51: -0.1627603333 | BB51: 0.5435139879 | BC51: -0.0003778364881
AB52: 50 | AC52: 0.25 | AD52: 0.05 | AF52: 43.10714286 | AG52: -0.8571428571 | AI52: 24.05952381 | AJ52: -0.4761904762 | AK52: 23.85952381 | AL52: -0.4761904762 | AM52: 66.96666667 | AN52: -1.333333333 | AP52: 0.2616257381 | AQ52: -0.0002325147619 | AR52: 0.0616257381 | AS52: -0.0002325147619 | AT52: 0.05 | AU52: 0 | AW52: 8.388016667 | AX52: -0.1627603333 | AY52: 8.188016667 | AZ52: -0.1627603333 | BB52: 0.5438918244 | BC52: -0.0003778364881
AB53: 51 | AC53: 0.25 | AD53: 0.05 | AF53: 43.96428571 | AG53: -0.8571428571 | AI53: 24.53571429 | AJ53: -0.4761904762 | AK53: 24.33571429 | AL53: -0.4761904762 | AM53: 68.3 | AN53: -1.333333333 | AP53: 0.2618582529 | AQ53: -0.0002325147619 | AR53: 0.06185825286 | AS53: -0.0002325147619 | AT53: 0.05 | AU53: 0 | AW53: 8.550777 | AX53: -0.1627603333 | AY53: 8.350777 | AZ53: -0.1627603333 | BB53: 0.5442696609 | BC53: -0.0003778364881
AB54: 52 | AC54: 0.25 | AD54: 0.05 | AF54: 44.82142857 | AG54: -0.8571428571 | AI54: 25.01190476 | AJ54: -0.4761904762 | AK54: 24.81190476 | AL54: -0.4761904762 | AM54: 69.63333333 | AN54: -1.333333333 | AP54: 0.2620907676 | AQ54: -0.0002325147619 | AR54: 0.06209076762 | AS54: -0.0002325147619 | AT54: 0.05 | AU54: 0 | AW54: 8.713537333 | AX54: -0.1627603333 | AY54: 8.513537333 | AZ54: -0.1627603333 | BB54: 0.5446474974 | BC54: -0.0003778364881
AB55: 53 | AC55: 0.25 | AD55: 0.05 | AF55: 45.67857143 | AG55: -0.8571428571 | AI55: 25.48809524 | AJ55: -0.4761904762 | AK55: 25.28809524 | AL55: -0.4761904762 | AM55: 70.96666667 | AN55: -1.333333333 | AP55: 0.2623232824 | AQ55: -0.0002325147619 | AR55: 0.06232328238 | AS55: -0.0002325147619 | AT55: 0.05 | AU55: 0 | AW55: 8.876297667 | AX55: -0.1627603333 | AY55: 8.676297667 | AZ55: -0.1627603333 | BB55: 0.5450253339 | BC55: -0.0003778364881
AB56: 54 | AC56: 0.25 | AD56: 0.05 | AF56: 46.53571429 | AG56: -0.8571428571 | AI56: 25.96428571 | AJ56: -0.4761904762 | AK56: 25.76428571 | AL56: -0.4761904762 | AM56: 72.3 | AN56: -1.333333333 | AP56: 0.2625557971 | AQ56: -0.0002325147619 | AR56: 0.06255579714 | AS56: -0.0002325147619 | AT56: 0.05 | AU56: 0 | AW56: 9.039058 | AX56: -0.1627603333 | AY56: 8.839058 | AZ56: -0.1627603333 | BB56: 0.5454031704 | BC56: -0.0003778364881
AB57: 55 | AC57: 0.25 | AD57: 0.05 | AF57: 47.39285714 | AG57: -0.8571428571 | AI57: 26.44047619 | AJ57: -0.4761904762 | AK57: 26.24047619 | AL57: -0.4761904762 | AM57: 73.63333333 | AN57: -1.333333333 | AP57: 0.2627883119 | AQ57: -0.0002325147619 | AR57: 0.0627883119 | AS57: -0.0002325147619 | AT57: 0.05 | AU57: 0 | AW57: 9.201818333 | AX57: -0.1627603333 | AY57: 9.001818333 | AZ57: -0.1627603333 | BB57: 0.5457810068 | BC57: -0.0003778364881
AB58: =AB57+1 -> 56 | AC58: =IF($AB58<$Y$4,$Y$2,(IF(($AC57-$Y$3)>0,$AC57-$Y$3,0))) -> 0.25 | AD58: =IF($AB58<$AA$4,$AA$2,(IF(($AD57-$AA$3)>0,$AD57-$AA$3,0))) -> 0.05 | AF58: 48.25 | AG58: =AF57-AF58 -> -0.8571428571 | AI58: 26.91666667 | AJ58: =AI57-AI58 -> -0.4761904762 | AK58: 26.71666667 | AL58: =AK57-AK58 -> -0.4761904762 | AM58: 74.96666667 | AN58: =AM57-AM58 -> -1.333333333 | AP58: 0.2630208267 | AQ58: =AP57-AP58 -> -0.0002325147619 | AR58: 0.06302082667 | AS58: =AR57-AR58 -> -0.0002325147619 | AT58: 0.05 | AU58: =AT57-AT58 -> 0 | AW58: 9.364578667 | AX58: =AW57-AW58 -> -0.1627603333 | AY58: 9.164578667 | AZ58: =AY57-AY58 -> -0.1627603333 | BB58: 0.5461588433 | BC58: =BB57-BB58 -> -0.0003778364881
AB59: 57 | AC59: 0.25 | AD59: 0.05 | AF59: 49.10714286 | AG59: -0.8571428571 | AI59: 27.39285714 | AJ59: -0.4761904762 | AK59: 27.19285714 | AL59: -0.4761904762 | AM59: 76.3 | AN59: -1.333333333 | AP59: 0.2632533414 | AQ59: -0.0002325147619 | AR59: 0.06325334143 | AS59: -0.0002325147619 | AT59: 0.05 | AU59: 0 | AW59: 9.527339 | AX59: -0.1627603333 | AY59: 9.327339 | AZ59: -0.1627603333 | BB59: 0.5465366798 | BC59: -0.0003778364881
AB60: 58 | AC60: 0.25 | AD60: 0.05 | AF60: 49.96428571 | AG60: -0.8571428571 | AI60: 27.86904762 | AJ60: -0.4761904762 | AK60: 27.66904762 | AL60: -0.4761904762 | AM60: 77.63333333 | AN60: -1.333333333 | AP60: 0.2634858562 | AQ60: -0.0002325147619 | AR60: 0.06348585619 | AS60: -0.0002325147619 | AT60: 0.05 | AU60: 0 | AW60: 9.690099333 | AX60: -0.1627603333 | AY60: 9.490099333 | AZ60: -0.1627603333 | BB60: 0.5469145163 | BC60: -0.0003778364881
AB61: 59 | AC61: 0.25 | AD61: 0.05 | AF61: 50.82142857 | AG61: -0.8571428571 | AI61: 28.3452381 | AJ61: -0.4761904762 | AK61: 28.1452381 | AL61: -0.4761904762 | AM61: 78.96666667 | AN61: -1.333333333 | AP61: 0.263718371 | AQ61: -0.0002325147619 | AR61: 0.06371837095 | AS61: -0.0002325147619 | AT61: 0.05 | AU61: 0 | AW61: 9.852859667 | AX61: -0.1627603333 | AY61: 9.652859667 | AZ61: -0.1627603333 | BB61: 0.5472923528 | BC61: -0.0003778364881
AB62: 60 | AC62: 0.25 | AD62: 0.05 | AF62: 51.67857143 | AG62: -0.8571428571 | AI62: 28.82142857 | AJ62: -0.4761904762 | AK62: 28.62142857 | AL62: -0.4761904762 | AM62: 80.3 | AN62: -1.333333333 | AP62: 0.2639508857 | AQ62: -0.0002325147619 | AR62: 0.06395088571 | AS62: -0.0002325147619 | AT62: 0.05 | AU62: 0 | AW62: 10.01562 | AX62: -0.1627603333 | AY62: 9.81562 | AZ62: -0.1627603333 | BB62: 0.5476701893 | BC62: -0.0003778364881
AB63: =AB62+1 -> 61 | AC63: =IF($AB63<$Y$4,$Y$2,(IF(($AC62-$Y$3)>0,$AC62-$Y$3,0))) -> 0.25 | AD63: =IF($AB63<$AA$4,$AA$2,(IF(($AD62-$AA$3)>0,$AD62-$AA$3,0))) -> 0.05 | AF63: 52.53571429 | AG63: =AF62-AF63 -> -0.8571428571 | AI63: 29.29761905 | AJ63: =AI62-AI63 -> -0.4761904762 | AK63: 29.09761905 | AL63: =AK62-AK63 -> -0.4761904762 | AM63: 81.63333333 | AN63: =AM62-AM63 -> -1.333333333 | AP63: 0.2641834005 | AQ63: =AP62-AP63 -> -0.0002325147619 | AR63: 0.06418340048 | AS63: =AR62-AR63 -> -0.0002325147619 | AT63: 0.05 | AU63: =AT62-AT63 -> 0 | AW63: 10.17838033 | AX63: =AW62-AW63 -> -0.1627603333 | AY63: 9.978380333 | AZ63: =AY62-AY63 -> -0.1627603333 | BB63: 0.5480480258 | BC63: =BB62-BB63 -> -0.0003778364881
AB64: 62 | AC64: 0.25 | AD64: 0.05 | AF64: 53.39285714 | AG64: -0.8571428571 | AI64: 29.77380952 | AJ64: -0.4761904762 | AK64: 29.57380952 | AL64: -0.4761904762 | AM64: 82.96666667 | AN64: -1.333333333 | AP64: 0.2644159152 | AQ64: -0.0002325147619 | AR64: 0.06441591524 | AS64: -0.0002325147619 | AT64: 0.05 | AU64: 0 | AW64: 10.34114067 | AX64: -0.1627603333 | AY64: 10.14114067 | AZ64: -0.1627603333 | BB64: 0.5484258623 | BC64: -0.0003778364881
AB65: 63 | AC65: 0.25 | AD65: 0.05 | AF65: 54.25 | AG65: -0.8571428571 | AI65: 30.25 | AJ65: -0.4761904762 | AK65: 30.05 | AL65: -0.4761904762 | AM65: 84.3 | AN65: -1.333333333 | AP65: 0.26464843 | AQ65: -0.0002325147619 | AR65: 0.06464843 | AS65: -0.0002325147619 | AT65: 0.05 | AU65: 0 | AW65: 10.503901 | AX65: -0.1627603333 | AY65: 10.303901 | AZ65: -0.1627603333 | BB65: 0.5488036988 | BC65: -0.0003778364881
AB66: 64 | AC66: 0.25 | AD66: 0.05 | AF66: 55.10714286 | AG66: -0.8571428571 | AI66: 30.72619048 | AJ66: -0.4761904762 | AK66: 30.52619048 | AL66: -0.4761904762 | AM66: =AF66+AK66 -> 85.63333333 | AN66: -1.333333333 | AP66: 0.2648809448 | AQ66: -0.0002325147619 | AR66: 0.06488094476 | AS66: -0.0002325147619 | AT66: 0.05 | AU66: 0 | AW66: 10.66666133 | AX66: -0.1627603333 | AY66: 10.46666133 | AZ66: -0.1627603333 | BB66: 0.5491815352 | BC66: -0.0003778364881
AB67: =AB66+1 -> 65 | AC67: 0.25 | AD67: 0.05 | AF67: 55.96428571 | AG67: =AF66-AF67 -> -0.8571428571 | AI67: 31.20238095 | AJ67: -0.4761904762 | AK67: 31.00238095 | AL67: -0.4761904762 | AM67: 86.96666667 | AN67: -1.333333333 | AP67: 0.2651134595 | AQ67: -0.0002325147619 | AR67: 0.06511345952 | AS67: -0.0002325147619 | AT67: 0.05 | AU67: 0 | AW67: 10.82942167 | AX67: -0.1627603333 | AY67: 10.62942167 | AZ67: -0.1627603333 | BB67: 0.5495593717 | BC67: -0.0003778364881
AB68: 66 | AC68: 0.25 | AD68: 0.05 | AF68: 56.82142857 | AG68: -0.8571428571 | AI68: 31.67857143 | AJ68: =AI67-AI68 -> -0.4761904762 | AK68: =$AD68+(($AB68*$W$2)*$L$2/($S$2*$T$2)*$U$2) -> 31.47857143 | AL68: -0.4761904762 | AM68: 88.3 | AN68: -1.333333333 | AP68: =$AC68+(($AB68*$X$2)*($O$2/($R$2*$T$2))) -> 0.2653459743 | AQ68: -0.0002325147619 | AR68: 0.06534597429 | AS68: -0.0002325147619 | AT68: =AD68 -> 0.05 | AU68: 0 | AW68: 10.992182 | AX68: -0.1627603333 | AY68: =$AD68+(($AB68*$W$2)*$M$2/($S$2*$T$2)*$U$2) -> 10.792182 | AZ68: -0.1627603333 | BB68: =$AC68+(($AB68*$X$2)*(($O$2+$P$2)/($R$2*$T$2)))+($G$2*1) -> 0.5499372082 | BC68: -0.0003778364881
AB69: 67 | AC69: =IF($AB69<$Y$4,$Y$2,(IF(($AC68-$Y$3)>0,$AC68-$Y$3,0))) -> 0.25 | AD69: =IF($AB69<$AA$4,$AA$2,(IF(($AD68-$AA$3)>0,$AD68-$AA$3,0))) -> 0.05 | AF69: =$AC69+(($AB69*$W$2)*$K$2/($Q$2*$T$2)) -> 57.67857143 | AG69: -0.8571428571 | AI69: =$AC69+(($AB69*$W$2)*$L$2/($Q$2*$T$2)) -> 32.1547619 | AJ69: =AI68-AI69 -> -0.4761904762 | AK69: 31.9547619 | AL69: -0.4761904762 | AM69: 89.63333333 | AN69: -1.333333333 | AP69: 0.265578489 | AQ69: =AP68-AP69 -> -0.0002325147619 | AR69: 0.06557848905 | AS69: -0.0002325147619 | AT69: 0.05 | AU69: 0 | AW69: =$AC69+(($AB69*$W$2)*$M$2/($Q$2*$T$2)) -> 11.15494233 | AX69: =AW68-AW69 -> -0.1627603333 | AY69: 10.95494233 | AZ69: =AY68-AY69 -> -0.1627603333 | BB69: 0.5503150447 | BC69: =BB68-BB69 -> -0.0003778364881
AB70: 68 | AC70: 0.25 | AD70: 0.05 | AF70: 58.53571429 | AG70: -0.8571428571 | AI70: 32.63095238 | AJ70: -0.4761904762 | AK70: 32.43095238 | AL70: -0.4761904762 | AM70: 90.96666667 | AN70: -1.333333333 | AP70: 0.2658110038 | AQ70: -0.0002325147619 | AR70: 0.06581100381 | AS70: -0.0002325147619 | AT70: 0.05 | AU70: 0 | AW70: 11.31770267 | AX70: -0.1627603333 | AY70: 11.11770267 | AZ70: -0.1627603333 | BB70: 0.5506928812 | BC70: -0.0003778364881
AB71: 69 | AC71: 0.25 | AD71: 0.05 | AF71: 59.39285714 | AG71: -0.8571428571 | AI71: 33.10714286 | AJ71: -0.4761904762 | AK71: 32.90714286 | AL71: -0.4761904762 | AM71: 92.3 | AN71: -1.333333333 | AP71: 0.2660435186 | AQ71: -0.0002325147619 | AR71: 0.06604351857 | AS71: -0.0002325147619 | AT71: 0.05 | AU71: 0 | AW71: 11.480463 | AX71: -0.1627603333 | AY71: 11.280463 | AZ71: -0.1627603333 | BB71: 0.5510707177 | BC71: -0.0003778364881
AB72: 70 | AC72: 0.25 | AD72: 0.05 | AF72: 60.25 | AG72: -0.8571428571 | AI72: 33.58333333 | AJ72: -0.4761904762 | AK72: 33.38333333 | AL72: -0.4761904762 | AM72: 93.63333333 | AN72: -1.333333333 | AP72: 0.2662760333 | AQ72: -0.0002325147619 | AR72: 0.06627603333 | AS72: -0.0002325147619 | AT72: 0.05 | AU72: 0 | AW72: 11.64322333 | AX72: -0.1627603333 | AY72: 11.44322333 | AZ72: -0.1627603333 | BB72: 0.5514485542 | BC72: -0.0003778364881
AB73: 71 | AC73: 0.25 | AD73: 0.05 | AF73: 61.10714286 | AG73: -0.8571428571 | AI73: 34.05952381 | AJ73: -0.4761904762 | AK73: 33.85952381 | AL73: -0.4761904762 | AM73: 94.96666667 | AN73: -1.333333333 | AP73: 0.2665085481 | AQ73: -0.0002325147619 | AR73: 0.0665085481 | AS73: -0.0002325147619 | AT73: 0.05 | AU73: 0 | AW73: 11.80598367 | AX73: -0.1627603333 | AY73: 11.60598367 | AZ73: -0.1627603333 | BB73: 0.5518263907 | BC73: -0.0003778364881
AB74: 72 | AC74: 0.25 | AD74: 0.05 | AF74: 61.96428571 | AG74: -0.8571428571 | AI74: 34.53571429 | AJ74: -0.4761904762 | AK74: 34.33571429 | AL74: -0.4761904762 | AM74: 96.3 | AN74: -1.333333333 | AP74: 0.2667410629 | AQ74: -0.0002325147619 | AR74: =$AD74+(($AB74*$X$2)*$O$2/($S$2*$T$2)*$V$2) -> 0.06674106286 | AS74: -0.0002325147619 | AT74: 0.05 | AU74: 0 | AW74: 11.968744 | AX74: -0.1627603333 | AY74: 11.768744 | AZ74: -0.1627603333 | BB74: 0.5522042271 | BC74: -0.0003778364881
AB75: 73 | AC75: 0.25 | AD75: 0.05 | AF75: 62.82142857 | AG75: -0.8571428571 | AI75: 35.01190476 | AJ75: -0.4761904762 | AK75: 34.81190476 | AL75: -0.4761904762 | AM75: 97.63333333 | AN75: -1.333333333 | AP75: 0.2669735776 | AQ75: -0.0002325147619 | AR75: 0.06697357762 | AS75: -0.0002325147619 | AT75: 0.05 | AU75: 0 | AW75: 12.13150433 | AX75: -0.1627603333 | AY75: 11.93150433 | AZ75: -0.1627603333 | BB75: 0.5525820636 | BC75: -0.0003778364881
AB76: 74 | AC76: 0.25 | AD76: 0.05 | AF76: 63.67857143 | AG76: -0.8571428571 | AI76: 35.48809524 | AJ76: -0.4761904762 | AK76: 35.28809524 | AL76: -0.4761904762 | AM76: 98.96666667 | AN76: -1.333333333 | AP76: 0.2672060924 | AQ76: -0.0002325147619 | AR76: 0.06720609238 | AS76: -0.0002325147619 | AT76: 0.05 | AU76: 0 | AW76: 12.29426467 | AX76: -0.1627603333 | AY76: 12.09426467 | AZ76: -0.1627603333 | BB76: 0.5529599001 | BC76: -0.0003778364881
AB77: 75 | AC77: 0.25 | AD77: 0.05 | AF77: 64.53571429 | AG77: -0.8571428571 | AI77: 35.96428571 | AJ77: -0.4761904762 | AK77: 35.76428571 | AL77: -0.4761904762 | AM77: 100.3 | AN77: -1.333333333 | AP77: 0.2674386071 | AQ77: -0.0002325147619 | AR77: 0.06743860714 | AS77: -0.0002325147619 | AT77: 0.05 | AU77: 0 | AW77: 12.457025 | AX77: -0.1627603333 | AY77: 12.257025 | AZ77: -0.1627603333 | BB77: 0.5533377366 | BC77: -0.0003778364881
AB78: 76 | AC78: 0.25 | AD78: 0.05 | AF78: 65.39285714 | AG78: -0.8571428571 | AI78: 36.44047619 | AJ78: -0.4761904762 | AK78: 36.24047619 | AL78: -0.4761904762 | AM78: 101.6333333 | AN78: -1.333333333 | AP78: 0.2676711219 | AQ78: -0.0002325147619 | AR78: 0.0676711219 | AS78: -0.0002325147619 | AT78: 0.05 | AU78: 0 | AW78: 12.61978533 | AX78: -0.1627603333 | AY78: 12.41978533 | AZ78: -0.1627603333 | BB78: 0.5537155731 | BC78: -0.0003778364881
AB79: 77 | AC79: 0.25 | AD79: 0.05 | AF79: 66.25 | AG79: -0.8571428571 | AI79: 36.91666667 | AJ79: -0.4761904762 | AK79: 36.71666667 | AL79: -0.4761904762 | AM79: 102.9666667 | AN79: -1.333333333 | AP79: 0.2679036367 | AQ79: -0.0002325147619 | AR79: 0.06790363667 | AS79: -0.0002325147619 | AT79: 0.05 | AU79: 0 | AW79: 12.78254567 | AX79: -0.1627603333 | AY79: 12.58254567 | AZ79: -0.1627603333 | BB79: 0.5540934096 | BC79: -0.0003778364881
AB80: 78 | AC80: 0.25 | AD80: 0.05 | AF80: 67.10714286 | AG80: -0.8571428571 | AI80: 37.39285714 | AJ80: -0.4761904762 | AK80: 37.19285714 | AL80: -0.4761904762 | AM80: 104.3 | AN80: -1.333333333 | AP80: 0.2681361514 | AQ80: -0.0002325147619 | AR80: 0.06813615143 | AS80: -0.0002325147619 | AT80: 0.05 | AU80: 0 | AW80: 12.945306 | AX80: -0.1627603333 | AY80: 12.745306 | AZ80: -0.1627603333 | BB80: 0.5544712461 | BC80: -0.0003778364881
AB81: 79 | AC81: 0.25 | AD81: 0.05 | AF81: 67.96428571 | AG81: -0.8571428571 | AI81: 37.86904762 | AJ81: -0.4761904762 | AK81: 37.66904762 | AL81: -0.4761904762 | AM81: 105.6333333 | AN81: -1.333333333 | AP81: 0.2683686662 | AQ81: -0.0002325147619 | AR81: 0.06836866619 | AS81: -0.0002325147619 | AT81: 0.05 | AU81: 0 | AW81: 13.10806633 | AX81: -0.1627603333 | AY81: 12.90806633 | AZ81: -0.1627603333 | BB81: 0.5548490826 | BC81: -0.0003778364881
AB82: 80 | AC82: 0.25 | AD82: 0.05 | AF82: 68.82142857 | AG82: -0.8571428571 | AI82: 38.3452381 | AJ82: -0.4761904762 | AK82: 38.1452381 | AL82: -0.4761904762 | AM82: 106.9666667 | AN82: -1.333333333 | AP82: 0.268601181 | AQ82: -0.0002325147619 | AR82: 0.06860118095 | AS82: -0.0002325147619 | AT82: 0.05 | AU82: 0 | AW82: 13.27082667 | AX82: -0.1627603333 | AY82: 13.07082667 | AZ82: -0.1627603333 | BB82: 0.555226919 | BC82: -0.0003778364881
AB83: 81 | AC83: 0.25 | AD83: 0.05 | AF83: 69.67857143 | AG83: -0.8571428571 | AI83: 38.82142857 | AJ83: -0.4761904762 | AK83: 38.62142857 | AL83: -0.4761904762 | AM83: 108.3 | AN83: -1.333333333 | AP83: 0.2688336957 | AQ83: -0.0002325147619 | AR83: 0.06883369571 | AS83: -0.0002325147619 | AT83: 0.05 | AU83: 0 | AW83: 13.433587 | AX83: -0.1627603333 | AY83: 13.233587 | AZ83: -0.1627603333 | BB83: 0.5556047555 | BC83: -0.0003778364881
AB84: 82 | AC84: 0.25 | AD84: 0.05 | AF84: 70.53571429 | AG84: -0.8571428571 | AI84: 39.29761905 | AJ84: -0.4761904762 | AK84: 39.09761905 | AL84: -0.4761904762 | AM84: 109.6333333 | AN84: -1.333333333 | AP84: 0.2690662105 | AQ84: -0.0002325147619 | AR84: 0.06906621048 | AS84: -0.0002325147619 | AT84: 0.05 | AU84: 0 | AW84: 13.59634733 | AX84: -0.1627603333 | AY84: 13.39634733 | AZ84: -0.1627603333 | BB84: 0.555982592 | BC84: -0.0003778364881
AB85: 83 | AC85: 0.25 | AD85: 0.05 | AF85: 71.39285714 | AG85: -0.8571428571 | AI85: 39.77380952 | AJ85: -0.4761904762 | AK85: 39.57380952 | AL85: -0.4761904762 | AM85: 110.9666667 | AN85: -1.333333333 | AP85: 0.2692987252 | AQ85: -0.0002325147619 | AR85: 0.06929872524 | AS85: -0.0002325147619 | AT85: 0.05 | AU85: 0 | AW85: 13.75910767 | AX85: -0.1627603333 | AY85: 13.55910767 | AZ85: -0.1627603333 | BB85: 0.5563604285 | BC85: -0.0003778364881
AB86: 84 | AC86: 0.25 | AD86: 0.05 | AF86: 72.25 | AG86: -0.8571428571 | AI86: 40.25 | AJ86: -0.4761904762 | AK86: 40.05 | AL86: -0.4761904762 | AM86: 112.3 | AN86: -1.333333333 | AP86: 0.26953124 | AQ86: -0.0002325147619 | AR86: 0.06953124 | AS86: -0.0002325147619 | AT86: 0.05 | AU86: 0 | AW86: 13.921868 | AX86: -0.1627603333 | AY86: 13.721868 | AZ86: -0.1627603333 | BB86: 0.556738265 | BC86: -0.0003778364881
AB87: 85 | AC87: 0.25 | AD87: 0.05 | AF87: 73.10714286 | AG87: -0.8571428571 | AI87: 40.72619048 | AJ87: -0.4761904762 | AK87: 40.52619048 | AL87: -0.4761904762 | AM87: 113.6333333 | AN87: -1.333333333 | AP87: 0.2697637548 | AQ87: -0.0002325147619 | AR87: 0.06976375476 | AS87: -0.0002325147619 | AT87: 0.05 | AU87: 0 | AW87: 14.08462833 | AX87: -0.1627603333 | AY87: 13.88462833 | AZ87: -0.1627603333 | BB87: 0.5571161015 | BC87: -0.0003778364881
AB88: 86 | AC88: 0.25 | AD88: 0.05 | AF88: 73.96428571 | AG88: -0.8571428571 | AI88: 41.20238095 | AJ88: -0.4761904762 | AK88: 41.00238095 | AL88: -0.4761904762 | AM88: 114.9666667 | AN88: -1.333333333 | AP88: 0.2699962695 | AQ88: -0.0002325147619 | AR88: 0.06999626952 | AS88: -0.0002325147619 | AT88: 0.05 | AU88: 0 | AW88: 14.24738867 | AX88: -0.1627603333 | AY88: 14.04738867 | AZ88: -0.1627603333 | BB88: 0.557493938 | BC88: -0.0003778364881
AB89: 87 | AC89: 0.25 | AD89: 0.05 | AF89: 74.82142857 | AG89: -0.8571428571 | AI89: 41.67857143 | AJ89: -0.4761904762 | AK89: 41.47857143 | AL89: -0.4761904762 | AM89: 116.3 | AN89: -1.333333333 | AP89: 0.2702287843 | AQ89: -0.0002325147619 | AR89: 0.07022878429 | AS89: -0.0002325147619 | AT89: 0.05 | AU89: 0 | AW89: 14.410149 | AX89: -0.1627603333 | AY89: 14.210149 | AZ89: -0.1627603333 | BB89: 0.5578717745 | BC89: -0.0003778364881
AB90: 88 | AC90: 0.25 | AD90: 0.05 | AF90: 75.67857143 | AG90: -0.8571428571 | AI90: 42.1547619 | AJ90: -0.4761904762 | AK90: 41.9547619 | AL90: -0.4761904762 | AM90: 117.6333333 | AN90: -1.333333333 | AP90: 0.270461299 | AQ90: -0.0002325147619 | AR90: 0.07046129905 | AS90: -0.0002325147619 | AT90: 0.05 | AU90: 0 | AW90: 14.57290933 | AX90: -0.1627603333 | AY90: 14.37290933 | AZ90: -0.1627603333 | BB90: 0.558249611 | BC90: -0.0003778364881
AB91: 89 | AC91: 0.25 | AD91: 0.05 | AF91: 76.53571429 | AG91: -0.8571428571 | AI91: 42.63095238 | AJ91: -0.4761904762 | AK91: 42.43095238 | AL91: -0.4761904762 | AM91: 118.9666667 | AN91: -1.333333333 | AP91: 0.2706938138 | AQ91: -0.0002325147619 | AR91: 0.07069381381 | AS91: -0.0002325147619 | AT91: 0.05 | AU91: 0 | AW91: 14.73566967 | AX91: -0.1627603333 | AY91: 14.53566967 | AZ91: -0.1627603333 | BB91: 0.5586274474 | BC91: -0.0003778364881
AB92: 90 | AC92: 0.25 | AD92: 0.05 | AF92: 77.39285714 | AG92: -0.8571428571 | AI92: 43.10714286 | AJ92: -0.4761904762 | AK92: 42.90714286 | AL92: -0.4761904762 | AM92: 120.3 | AN92: -1.333333333 | AP92: 0.2709263286 | AQ92: -0.0002325147619 | AR92: 0.07092632857 | AS92: -0.0002325147619 | AT92: 0.05 | AU92: 0 | AW92: 14.89843 | AX92: -0.1627603333 | AY92: 14.69843 | AZ92: -0.1627603333 | BB92: 0.5590052839 | BC92: -0.0003778364881
AB93: 91 | AC93: 0.25 | AD93: 0.05 | AF93: 78.25 | AG93: -0.8571428571 | AI93: 43.58333333 | AJ93: -0.4761904762 | AK93: 43.38333333 | AL93: -0.4761904762 | AM93: 121.6333333 | AN93: -1.333333333 | AP93: 0.2711588433 | AQ93: -0.0002325147619 | AR93: 0.07115884333 | AS93: -0.0002325147619 | AT93: 0.05 | AU93: 0 | AW93: 15.06119033 | AX93: -0.1627603333 | AY93: 14.86119033 | AZ93: -0.1627603333 | BB93: 0.5593831204 | BC93: -0.0003778364881
AB94: 92 | AC94: 0.25 | AD94: 0.05 | AF94: 79.10714286 | AG94: -0.8571428571 | AI94: 44.05952381 | AJ94: -0.4761904762 | AK94: 43.85952381 | AL94: -0.4761904762 | AM94: 122.9666667 | AN94: -1.333333333 | AP94: 0.2713913581 | AQ94: -0.0002325147619 | AR94: 0.0713913581 | AS94: -0.0002325147619 | AT94: 0.05 | AU94: 0 | AW94: 15.22395067 | AX94: -0.1627603333 | AY94: 15.02395067 | AZ94: -0.1627603333 | BB94: 0.5597609569 | BC94: -0.0003778364881
AB95: 93 | AC95: 0.25 | AD95: 0.05 | AF95: 79.96428571 | AG95: -0.8571428571 | AI95: 44.53571429 | AJ95: -0.4761904762 | AK95: 44.33571429 | AL95: -0.4761904762 | AM95: 124.3 | AN95: -1.333333333 | AP95: 0.2716238729 | AQ95: -0.0002325147619 | AR95: 0.07162387286 | AS95: -0.0002325147619 | AT95: 0.05 | AU95: 0 | AW95: 15.386711 | AX95: -0.1627603333 | AY95: 15.186711 | AZ95: -0.1627603333 | BB95: 0.5601387934 | BC95: -0.0003778364881
AB96: 94 | AC96: 0.25 | AD96: 0.05 | AF96: 80.82142857 | AG96: -0.8571428571 | AI96: 45.01190476 | AJ96: -0.4761904762 | AK96: 44.81190476 | AL96: -0.4761904762 | AM96: 125.6333333 | AN96: -1.333333333 | AP96: 0.2718563876 | AQ96: -0.0002325147619 | AR96: 0.07185638762 | AS96: -0.0002325147619 | AT96: 0.05 | AU96: 0 | AW96: 15.54947133 | AX96: -0.1627603333 | AY96: 15.34947133 | AZ96: -0.1627603333 | BB96: 0.5605166299 | BC96: -0.0003778364881
AB97: 95 | AC97: 0.25 | AD97: 0.05 | AF97: 81.67857143 | AG97: -0.8571428571 | AI97: 45.48809524 | AJ97: -0.4761904762 | AK97: 45.28809524 | AL97: -0.4761904762 | AM97: 126.9666667 | AN97: -1.333333333 | AP97: 0.2720889024 | AQ97: -0.0002325147619 | AR97: 0.07208890238 | AS97: -0.0002325147619 | AT97: 0.05 | AU97: 0 | AW97: 15.71223167 | AX97: -0.1627603333 | AY97: 15.51223167 | AZ97: -0.1627603333 | BB97: 0.5608944664 | BC97: -0.0003778364881
AB98: 96 | AC98: 0.25 | AD98: 0.05 | AF98: 82.53571429 | AG98: -0.8571428571 | AI98: 45.96428571 | AJ98: -0.4761904762 | AK98: 45.76428571 | AL98: -0.4761904762 | AM98: 128.3 | AN98: -1.333333333 | AP98: 0.2723214171 | AQ98: -0.0002325147619 | AR98: 0.07232141714 | AS98: -0.0002325147619 | AT98: 0.05 | AU98: 0 | AW98: 15.874992 | AX98: -0.1627603333 | AY98: 15.674992 | AZ98: -0.1627603333 | BB98: 0.5612723029 | BC98: -0.0003778364881
AB99: 97 | AC99: 0.25 | AD99: 0.05 | AF99: 83.39285714 | AG99: -0.8571428571 | AI99: 46.44047619 | AJ99: -0.4761904762 | AK99: 46.24047619 | AL99: -0.4761904762 | AM99: 129.6333333 | AN99: -1.333333333 | AP99: 0.2725539319 | AQ99: -0.0002325147619 | AR99: 0.0725539319 | AS99: -0.0002325147619 | AT99: 0.05 | AU99: 0 | AW99: 16.03775233 | AX99: -0.1627603333 | AY99: 15.83775233 | AZ99: -0.1627603333 | BB99: 0.5616501393 | BC99: -0.0003778364881
AB100: =AB99+1 -> 98 | AC100: 0.25 | AD100: 0.05 | AF100: 84.25 | AG100: -0.8571428571 | AI100: 46.91666667 | AJ100: -0.4761904762 | AK100: 46.71666667 | AL100: -0.4761904762 | AM100: 130.9666667 | AN100: -1.333333333 | AP100: 0.2727864467 | AQ100: -0.0002325147619 | AR100: 0.07278644667 | AS100: -0.0002325147619 | AT100: 0.05 | AU100: 0 | AW100: 16.20051267 | AX100: -0.1627603333 | AY100: 16.00051267 | AZ100: -0.1627603333 | BB100: 0.5620279758 | BC100: -0.0003778364881
AB101: =AB100+1 -> 99 | AC101: 0.25 | AD101: 0.05 | AF101: 85.10714286 | AG101: -0.8571428571 | AI101: 47.39285714 | AJ101: -0.4761904762 | AK101: 47.19285714 | AL101: -0.4761904762 | AM101: 132.3 | AN101: -1.333333333 | AP101: 0.2730189614 | AQ101: -0.0002325147619 | AR101: 0.07301896143 | AS101: -0.0002325147619 | AT101: 0.05 | AU101: 0 | AW101: 16.363273 | AX101: -0.1627603333 | AY101: 16.163273 | AZ101: -0.1627603333 | BB101: 0.5624058123 | BC101: -0.0003778364881
AB102: =AB101+1 -> 100 | AC102: =IF($AB102<$Y$4,$Y$2,(IF(($AC101-$Y$3)>0,$AC101-$Y$3,0))) -> 0.25 | AD102: =IF($AB102<$AA$4,$AA$2,(IF(($AD101-$AA$3)>0,$AD101-$AA$3,0))) -> 0.05 | AF102: 85.96428571 | AG102: =AF101-AF102 -> -0.8571428571 | AI102: 47.86904762 | AJ102: =AI101-AI102 -> -0.4761904762 | AK102: 47.66904762 | AL102: =AK101-AK102 -> -0.4761904762 | AM102: 133.6333333 | AN102: =AM101-AM102 -> -1.333333333 | AP102: 0.2732514762 | AQ102: =AP101-AP102 -> -0.0002325147619 | AR102: 0.07325147619 | AS102: =AR101-AR102 -> -0.0002325147619 | AT102: 0.05 | AU102: =AT101-AT102 -> 0 | AW102: 16.52603333 | AX102: =AW101-AW102 -> -0.1627603333 | AY102: 16.32603333 | AZ102: =AY101-AY102 -> -0.1627603333 | BB102: 0.5627836488 | BC102: =BB101-BB102 -> -0.0003778364881
AB103: =AB102+1 -> 101 | AC103: 0.25 | AD103: 0.05 | AF103: 86.82142857 | AG103: -0.8571428571 | AI103: 48.3452381 | AJ103: -0.4761904762 | AK103: 48.1452381 | AL103: -0.4761904762 | AM103: 134.9666667 | AN103: -1.333333333 | AP103: 0.273483991 | AQ103: -0.0002325147619 | AR103: 0.07348399095 | AS103: -0.0002325147619 | AT103: 0.05 | AU103: 0 | AW103: 16.68879367 | AX103: -0.1627603333 | AY103: 16.48879367 | AZ103: -0.1627603333 | BB103: 0.5631614853 | BC103: -0.0003778364881
AB104: =AB103+1 -> 102 | AC104: 0.25 | AD104: 0.05 | AF104: 87.67857143 | AG104: -0.8571428571 | AI104: 48.82142857 | AJ104: -0.4761904762 | AK104: 48.62142857 | AL104: -0.4761904762 | AM104: 136.3 | AN104: -1.333333333 | AP104: 0.2737165057 | AQ104: -0.0002325147619 | AR104: 0.07371650571 | AS104: -0.0002325147619 | AT104: 0.05 | AU104: 0 | AW104: 16.851554 | AX104: -0.1627603333 | AY104: 16.651554 | AZ104: -0.1627603333 | BB104: 0.5635393218 | BC104: -0.0003778364881
AB105: =AB104+1 -> 103 | AC105: 0.25 | AD105: 0.05 | AF105: 88.53571429 | AG105: -0.8571428571 | AI105: 49.29761905 | AJ105: -0.4761904762 | AK105: 49.09761905 | AL105: -0.4761904762 | AM105: 137.6333333 | AN105: -1.333333333 | AP105: 0.2739490205 | AQ105: -0.0002325147619 | AR105: 0.07394902048 | AS105: -0.0002325147619 | AT105: 0.05 | AU105: 0 | AW105: 17.01431433 | AX105: -0.1627603333 | AY105: 16.81431433 | AZ105: -0.1627603333 | BB105: 0.5639171583 | BC105: -0.0003778364881
AB106: 104 | AC106: 0.25 | AD106: 0.05 | AF106: 89.39285714 | AG106: -0.8571428571 | AI106: 49.77380952 | AJ106: -0.4761904762 | AK106: 49.57380952 | AL106: -0.4761904762 | AM106: 138.9666667 | AN106: -1.333333333 | AP106: 0.2741815352 | AQ106: -0.0002325147619 | AR106: 0.07418153524 | AS106: -0.0002325147619 | AT106: 0.05 | AU106: 0 | AW106: 17.17707467 | AX106: -0.1627603333 | AY106: 16.97707467 | AZ106: -0.1627603333 | BB106: 0.5642949948 | BC106: -0.0003778364881
AB107: 105 | AC107: 0.25 | AD107: 0.05 | AF107: 90.25 | AG107: -0.8571428571 | AI107: 50.25 | AJ107: -0.4761904762 | AK107: 50.05 | AL107: -0.4761904762 | AM107: 140.3 | AN107: -1.333333333 | AP107: 0.27441405 | AQ107: -0.0002325147619 | AR107: 0.07441405 | AS107: -0.0002325147619 | AT107: 0.05 | AU107: 0 | AW107: 17.339835 | AX107: -0.1627603333 | AY107: 17.139835 | AZ107: -0.1627603333 | BB107: 0.5646728313 | BC107: -0.0003778364881
AB108: 106 | AC108: 0.25 | AD108: 0.05 | AF108: 91.10714286 | AG108: -0.8571428571 | AI108: 50.72619048 | AJ108: -0.4761904762 | AK108: 50.52619048 | AL108: -0.4761904762 | AM108: 141.6333333 | AN108: -1.333333333 | AP108: 0.2746465648 | AQ108: -0.0002325147619 | AR108: 0.07464656476 | AS108: -0.0002325147619 | AT108: 0.05 | AU108: 0 | AW108: 17.50259533 | AX108: -0.1627603333 | AY108: 17.30259533 | AZ108: -0.1627603333 | BB108: 0.5650506677 | BC108: -0.0003778364881
AB109: 107 | AC109: 0.25 | AD109: 0.05 | AF109: 91.96428571 | AG109: -0.8571428571 | AI109: 51.20238095 | AJ109: -0.4761904762 | AK109: 51.00238095 | AL109: -0.4761904762 | AM109: 142.9666667 | AN109: -1.333333333 | AP109: 0.2748790795 | AQ109: -0.0002325147619 | AR109: 0.07487907952 | AS109: -0.0002325147619 | AT109: 0.05 | AU109: 0 | AW109: 17.66535567 | AX109: -0.1627603333 | AY109: 17.46535567 | AZ109: -0.1627603333 | BB109: 0.5654285042 | BC109: -0.0003778364881
AB110: 108 | AC110: 0.25 | AD110: 0.05 | AF110: 92.82142857 | AG110: -0.8571428571 | AI110: 51.67857143 | AJ110: -0.4761904762 | AK110: 51.47857143 | AL110: -0.4761904762 | AM110: 144.3 | AN110: -1.333333333 | AP110: 0.2751115943 | AQ110: -0.0002325147619 | AR110: 0.07511159429 | AS110: -0.0002325147619 | AT110: 0.05 | AU110: 0 | AW110: 17.828116 | AX110: -0.1627603333 | AY110: 17.628116 | AZ110: -0.1627603333 | BB110: 0.5658063407 | BC110: -0.0003778364881
AB111: 109 | AC111: 0.25 | AD111: 0.05 | AF111: 93.67857143 | AG111: -0.8571428571 | AI111: 52.1547619 | AJ111: -0.4761904762 | AK111: 51.9547619 | AL111: -0.4761904762 | AM111: 145.6333333 | AN111: -1.333333333 | AP111: 0.275344109 | AQ111: -0.0002325147619 | AR111: 0.07534410905 | AS111: -0.0002325147619 | AT111: 0.05 | AU111: 0 | AW111: 17.99087633 | AX111: -0.1627603333 | AY111: 17.79087633 | AZ111: -0.1627603333 | BB111: 0.5661841772 | BC111: -0.0003778364881
AB112: 110 | AC112: 0.25 | AD112: 0.05 | AF112: 94.53571429 | AG112: -0.8571428571 | AI112: 52.63095238 | AJ112: -0.4761904762 | AK112: 52.43095238 | AL112: -0.4761904762 | AM112: 146.9666667 | AN112: -1.333333333 | AP112: 0.2755766238 | AQ112: -0.0002325147619 | AR112: 0.07557662381 | AS112: -0.0002325147619 | AT112: 0.05 | AU112: 0 | AW112: 18.15363667 | AX112: -0.1627603333 | AY112: 17.95363667 | AZ112: -0.1627603333 | BB112: 0.5665620137 | BC112: -0.0003778364881
AB113: 111 | AC113: 0.25 | AD113: 0.05 | AF113: 95.39285714 | AG113: -0.8571428571 | AI113: 53.10714286 | AJ113: -0.4761904762 | AK113: 52.90714286 | AL113: -0.4761904762 | AM113: 148.3 | AN113: -1.333333333 | AP113: 0.2758091386 | AQ113: -0.0002325147619 | AR113: 0.07580913857 | AS113: -0.0002325147619 | AT113: 0.05 | AU113: 0 | AW113: 18.316397 | AX113: -0.1627603333 | AY113: 18.116397 | AZ113: -0.1627603333 | BB113: 0.5669398502 | BC113: -0.0003778364881
AB114: 112 | AC114: 0.25 | AD114: 0.05 | AF114: 96.25 | AG114: -0.8571428571 | AI114: 53.58333333 | AJ114: -0.4761904762 | AK114: 53.38333333 | AL114: -0.4761904762 | AM114: 149.6333333 | AN114: -1.333333333 | AP114: 0.2760416533 | AQ114: -0.0002325147619 | AR114: 0.07604165333 | AS114: -0.0002325147619 | AT114: 0.05 | AU114: 0 | AW114: 18.47915733 | AX114: -0.1627603333 | AY114: 18.27915733 | AZ114: -0.1627603333 | BB114: 0.5673176867 | BC114: -0.0003778364881
AB115: 113 | AC115: 0.25 | AD115: 0.05 | AF115: 97.10714286 | AG115: -0.8571428571 | AI115: 54.05952381 | AJ115: -0.4761904762 | AK115: 53.85952381 | AL115: -0.4761904762 | AM115: 150.9666667 | AN115: -1.333333333 | AP115: 0.2762741681 | AQ115: -0.0002325147619 | AR115: 0.0762741681 | AS115: -0.0002325147619 | AT115: 0.05 | AU115: 0 | AW115: 18.64191767 | AX115: -0.1627603333 | AY115: 18.44191767 | AZ115: -0.1627603333 | BB115: 0.5676955232 | BC115: -0.0003778364881
AB116: 114 | AC116: 0.25 | AD116: 0.05 | AF116: 97.96428571 | AG116: -0.8571428571 | AI116: 54.53571429 | AJ116: -0.4761904762 | AK116: 54.33571429 | AL116: -0.4761904762 | AM116: 152.3 | AN116: -1.333333333 | AP116: 0.2765066829 | AQ116: -0.0002325147619 | AR116: 0.07650668286 | AS116: -0.0002325147619 | AT116: 0.05 | AU116: 0 | AW116: 18.804678 | AX116: -0.1627603333 | AY116: 18.604678 | AZ116: -0.1627603333 | BB116: 0.5680733596 | BC116: -0.0003778364881
AB117: 115 | AC117: 0.25 | AD117: 0.05 | AF117: 98.82142857 | AG117: -0.8571428571 | AI117: 55.01190476 | AJ117: -0.4761904762 | AK117: 54.81190476 | AL117: -0.4761904762 | AM117: 153.6333333 | AN117: -1.333333333 | AP117: 0.2767391976 | AQ117: -0.0002325147619 | AR117: 0.07673919762 | AS117: -0.0002325147619 | AT117: 0.05 | AU117: 0 | AW117: 18.96743833 | AX117: -0.1627603333 | AY117: 18.76743833 | AZ117: -0.1627603333 | BB117: 0.5684511961 | BC117: -0.0003778364881
AB118: 116 | AC118: 0.25 | AD118: 0.05 | AF118: 99.67857143 | AG118: -0.8571428571 | AI118: 55.48809524 | AJ118: -0.4761904762 | AK118: 55.28809524 | AL118: -0.4761904762 | AM118: 154.9666667 | AN118: -1.333333333 | AP118: 0.2769717124 | AQ118: -0.0002325147619 | AR118: 0.07697171238 | AS118: -0.0002325147619 | AT118: 0.05 | AU118: 0 | AW118: 19.13019867 | AX118: -0.1627603333 | AY118: 18.93019867 | AZ118: -0.1627603333 | BB118: 0.5688290326 | BC118: -0.0003778364881
AB119: 117 | AC119: 0.25 | AD119: 0.05 | AF119: 100.5357143 | AG119: -0.8571428571 | AI119: 55.96428571 | AJ119: -0.4761904762 | AK119: 55.76428571 | AL119: -0.4761904762 | AM119: 156.3 | AN119: -1.333333333 | AP119: 0.2772042271 | AQ119: -0.0002325147619 | AR119: 0.07720422714 | AS119: -0.0002325147619 | AT119: 0.05 | AU119: 0 | AW119: 19.292959 | AX119: -0.1627603333 | AY119: 19.092959 | AZ119: -0.1627603333 | BB119: 0.5692068691 | BC119: -0.0003778364881
AB120: 118 | AC120: 0.25 | AD120: 0.05 | AF120: 101.3928571 | AG120: -0.8571428571 | AI120: 56.44047619 | AJ120: -0.4761904762 | AK120: 56.24047619 | AL120: -0.4761904762 | AM120: 157.6333333 | AN120: -1.333333333 | AP120: 0.2774367419 | AQ120: -0.0002325147619 | AR120: 0.0774367419 | AS120: -0.0002325147619 | AT120: 0.05 | AU120: 0 | AW120: 19.45571933 | AX120: -0.1627603333 | AY120: 19.25571933 | AZ120: -0.1627603333 | BB120: 0.5695847056 | BC120: -0.0003778364881
AB121: 119 | AC121: 0.25 | AD121: 0.05 | AF121: 102.25 | AG121: -0.8571428571 | AI121: 56.91666667 | AJ121: -0.4761904762 | AK121: 56.71666667 | AL121: -0.4761904762 | AM121: 158.9666667 | AN121: -1.333333333 | AP121: 0.2776692567 | AQ121: -0.0002325147619 | AR121: 0.07766925667 | AS121: -0.0002325147619 | AT121: 0.05 | AU121: 0 | AW121: 19.61847967 | AX121: -0.1627603333 | AY121: 19.41847967 | AZ121: -0.1627603333 | BB121: 0.5699625421 | BC121: -0.0003778364881
AB122: 120 | AC122: 0.25 | AD122: 0.05 | AF122: 103.1071429 | AG122: -0.8571428571 | AI122: 57.39285714 | AJ122: -0.4761904762 | AK122: 57.19285714 | AL122: -0.4761904762 | AM122: 160.3 | AN122: -1.333333333 | AP122: 0.2779017714 | AQ122: -0.0002325147619 | AR122: 0.07790177143 | AS122: -0.0002325147619 | AT122: 0.05 | AU122: 0 | AW122: 19.78124 | AX122: -0.1627603333 | AY122: 19.58124 | AZ122: -0.1627603333 | BB122: 0.5703403786 | BC122: -0.0003778364881
AB123: 121 | AC123: 0.25 | AD123: 0.05 | AF123: 103.9642857 | AG123: -0.8571428571 | AI123: 57.86904762 | AJ123: -0.4761904762 | AK123: 57.66904762 | AL123: -0.4761904762 | AM123: 161.6333333 | AN123: -1.333333333 | AP123: 0.2781342862 | AQ123: -0.0002325147619 | AR123: 0.07813428619 | AS123: -0.0002325147619 | AT123: 0.05 | AU123: 0 | AW123: 19.94400033 | AX123: -0.1627603333 | AY123: 19.74400033 | AZ123: -0.1627603333 | BB123: 0.5707182151 | BC123: -0.0003778364881
AB124: 122 | AC124: 0.25 | AD124: 0.05 | AF124: 104.8214286 | AG124: -0.8571428571 | AI124: 58.3452381 | AJ124: -0.4761904762 | AK124: 58.1452381 | AL124: -0.4761904762 | AM124: 162.9666667 | AN124: -1.333333333 | AP124: 0.278366801 | AQ124: -0.0002325147619 | AR124: 0.07836680095 | AS124: -0.0002325147619 | AT124: 0.05 | AU124: 0 | AW124: 20.10676067 | AX124: -0.1627603333 | AY124: 19.90676067 | AZ124: -0.1627603333 | BB124: 0.5710960515 | BC124: -0.0003778364881
AB125: 123 | AC125: 0.25 | AD125: 0.05 | AF125: 105.6785714 | AG125: -0.8571428571 | AI125: 58.82142857 | AJ125: -0.4761904762 | AK125: 58.62142857 | AL125: -0.4761904762 | AM125: 164.3 | AN125: -1.333333333 | AP125: 0.2785993157 | AQ125: -0.0002325147619 | AR125: 0.07859931571 | AS125: -0.0002325147619 | AT125: 0.05 | AU125: 0 | AW125: 20.269521 | AX125: -0.1627603333 | AY125: 20.069521 | AZ125: -0.1627603333 | BB125: 0.571473888 | BC125: -0.0003778364881
AB126: 124 | AC126: 0.25 | AD126: 0.05 | AF126: 106.5357143 | AG126: -0.8571428571 | AI126: 59.29761905 | AJ126: -0.4761904762 | AK126: 59.09761905 | AL126: -0.4761904762 | AM126: 165.6333333 | AN126: -1.333333333 | AP126: 0.2788318305 | AQ126: -0.0002325147619 | AR126: 0.07883183048 | AS126: -0.0002325147619 | AT126: 0.05 | AU126: 0 | AW126: 20.43228133 | AX126: -0.1627603333 | AY126: 20.23228133 | AZ126: -0.1627603333 | BB126: 0.5718517245 | BC126: -0.0003778364881
AB127: 125 | AC127: 0.25 | AD127: 0.05 | AF127: 107.3928571 | AG127: -0.8571428571 | AI127: 59.77380952 | AJ127: -0.4761904762 | AK127: 59.57380952 | AL127: -0.4761904762 | AM127: 166.9666667 | AN127: -1.333333333 | AP127: 0.2790643452 | AQ127: -0.0002325147619 | AR127: 0.07906434524 | AS127: -0.0002325147619 | AT127: 0.05 | AU127: 0 | AW127: 20.59504167 | AX127: -0.1627603333 | AY127: 20.39504167 | AZ127: -0.1627603333 | BB127: 0.572229561 | BC127: -0.0003778364881
AB128: 126 | AC128: 0.25 | AD128: 0.05 | AF128: 108.25 | AG128: -0.8571428571 | AI128: 60.25 | AJ128: -0.4761904762 | AK128: 60.05 | AL128: -0.4761904762 | AM128: 168.3 | AN128: -1.333333333 | AP128: 0.27929686 | AQ128: -0.0002325147619 | AR128: 0.07929686 | AS128: -0.0002325147619 | AT128: 0.05 | AU128: 0 | AW128: 20.757802 | AX128: -0.1627603333 | AY128: 20.557802 | AZ128: -0.1627603333 | BB128: 0.5726073975 | BC128: -0.0003778364881
AB129: 127 | AC129: 0.25 | AD129: 0.05 | AF129: 109.1071429 | AG129: -0.8571428571 | AI129: 60.72619048 | AJ129: -0.4761904762 | AK129: 60.52619048 | AL129: -0.4761904762 | AM129: 169.6333333 | AN129: -1.333333333 | AP129: 0.2795293748 | AQ129: -0.0002325147619 | AR129: 0.07952937476 | AS129: -0.0002325147619 | AT129: 0.05 | AU129: 0 | AW129: 20.92056233 | AX129: -0.1627603333 | AY129: 20.72056233 | AZ129: -0.1627603333 | BB129: 0.572985234 | BC129: -0.0003778364881
AB130: 128 | AC130: 0.25 | AD130: 0.05 | AF130: 109.9642857 | AG130: -0.8571428571 | AI130: 61.20238095 | AJ130: -0.4761904762 | AK130: 61.00238095 | AL130: -0.4761904762 | AM130: =AF130+AK130 -> 170.9666667 | AN130: -1.333333333 | AP130: 0.2797618895 | AQ130: -0.0002325147619 | AR130: 0.07976188952 | AS130: -0.0002325147619 | AT130: 0.05 | AU130: 0 | AW130: 21.08332267 | AX130: -0.1627603333 | AY130: 20.88332267 | AZ130: -0.1627603333 | BB130: 0.5733630705 | BC130: -0.0003778364881
AB131: 129 | AC131: 0.25 | AD131: 0.05 | AF131: 110.8214286 | AG131: =AF130-AF131 -> -0.8571428571 | AI131: 61.67857143 | AJ131: -0.4761904762 | AK131: 61.47857143 | AL131: -0.4761904762 | AM131: 172.3 | AN131: -1.333333333 | AP131: 0.2799944043 | AQ131: -0.0002325147619 | AR131: 0.07999440429 | AS131: -0.0002325147619 | AT131: 0.05 | AU131: 0 | AW131: 21.246083 | AX131: -0.1627603333 | AY131: 21.046083 | AZ131: -0.1627603333 | BB131: 0.573740907 | BC131: -0.0003778364881
AB132: 130 | AC132: 0.25 | AD132: 0.05 | AF132: 111.6785714 | AG132: -0.8571428571 | AI132: 62.1547619 | AJ132: =AI131-AI132 -> -0.4761904762 | AK132: =$AD132+(($AB132*$W$2)*$L$2/($S$2*$T$2)*$U$2) -> 61.9547619 | AL132: -0.4761904762 | AM132: 173.6333333 | AN132: -1.333333333 | AP132: =$AC132+(($AB132*$X$2)*($O$2/($R$2*$T$2))) -> 0.280226919 | AQ132: -0.0002325147619 | AR132: 0.08022691905 | AS132: -0.0002325147619 | AT132: =AD132 -> 0.05 | AU132: 0 | AW132: 21.40884333 | AX132: -0.1627603333 | AY132: =$AD132+(($AB132*$W$2)*$M$2/($S$2*$T$2)*$U$2) -> 21.20884333 | AZ132: -0.1627603333 | BB132: =$AC132+(($AB132*$X$2)*(($O$2+$P$2)/($R$2*$T$2)))+($G$2*1) -> 0.5741187435 | BC132: -0.0003778364881
AB133: 131 | AC133: =IF($AB133<$Y$4,$Y$2,(IF(($AC132-$Y$3)>0,$AC132-$Y$3,0))) -> 0.25 | AD133: =IF($AB133<$AA$4,$AA$2,(IF(($AD132-$AA$3)>0,$AD132-$AA$3,0))) -> 0.05 | AF133: =$AC133+(($AB133*$W$2)*$K$2/($Q$2*$T$2)) -> 112.5357143 | AG133: -0.8571428571 | AI133: =$AC133+(($AB133*$W$2)*$L$2/($Q$2*$T$2)) -> 62.63095238 | AJ133: =AI132-AI133 -> -0.4761904762 | AK133: 62.43095238 | AL133: -0.4761904762 | AM133: 174.9666667 | AN133: -1.333333333 | AP133: 0.2804594338 | AQ133: =AP132-AP133 -> -0.0002325147619 | AR133: 0.08045943381 | AS133: -0.0002325147619 | AT133: 0.05 | AU133: 0 | AW133: =$AC133+(($AB133*$W$2)*$M$2/($Q$2*$T$2)) -> 21.57160367 | AX133: =AW132-AW133 -> -0.1627603333 | AY133: 21.37160367 | AZ133: =AY132-AY133 -> -0.1627603333 | BB133: 0.5744965799 | BC133: =BB132-BB133 -> -0.0003778364881
AB134: 132 | AC134: 0.25 | AD134: 0.05 | AF134: 113.3928571 | AG134: -0.8571428571 | AI134: 63.10714286 | AJ134: -0.4761904762 | AK134: 62.90714286 | AL134: -0.4761904762 | AM134: 176.3 | AN134: -1.333333333 | AP134: 0.2806919486 | AQ134: -0.0002325147619 | AR134: 0.08069194857 | AS134: -0.0002325147619 | AT134: 0.05 | AU134: 0 | AW134: 21.734364 | AX134: -0.1627603333 | AY134: 21.534364 | AZ134: -0.1627603333 | BB134: 0.5748744164 | BC134: -0.0003778364881
AB135: 133 | AC135: 0.25 | AD135: 0.05 | AF135: 114.25 | AG135: -0.8571428571 | AI135: 63.58333333 | AJ135: -0.4761904762 | AK135: 63.38333333 | AL135: -0.4761904762 | AM135: 177.6333333 | AN135: -1.333333333 | AP135: 0.2809244633 | AQ135: -0.0002325147619 | AR135: 0.08092446333 | AS135: -0.0002325147619 | AT135: 0.05 | AU135: 0 | AW135: 21.89712433 | AX135: -0.1627603333 | AY135: 21.69712433 | AZ135: -0.1627603333 | BB135: 0.5752522529 | BC135: -0.0003778364881
AB136: 134 | AC136: 0.25 | AD136: 0.05 | AF136: 115.1071429 | AG136: -0.8571428571 | AI136: 64.05952381 | AJ136: -0.4761904762 | AK136: 63.85952381 | AL136: -0.4761904762 | AM136: 178.9666667 | AN136: -1.333333333 | AP136: 0.2811569781 | AQ136: -0.0002325147619 | AR136: 0.0811569781 | AS136: -0.0002325147619 | AT136: 0.05 | AU136: 0 | AW136: 22.05988467 | AX136: -0.1627603333 | AY136: 21.85988467 | AZ136: -0.1627603333 | BB136: 0.5756300894 | BC136: -0.0003778364881
AB137: 135 | AC137: 0.25 | AD137: 0.05 | AF137: 115.9642857 | AG137: -0.8571428571 | AI137: 64.53571429 | AJ137: -0.4761904762 | AK137: 64.33571429 | AL137: -0.4761904762 | AM137: 180.3 | AN137: -1.333333333 | AP137: 0.2813894929 | AQ137: -0.0002325147619 | AR137: 0.08138949286 | AS137: -0.0002325147619 | AT137: 0.05 | AU137: 0 | AW137: 22.222645 | AX137: -0.1627603333 | AY137: 22.022645 | AZ137: -0.1627603333 | BB137: 0.5760079259 | BC137: -0.0003778364881
AB138: 136 | AC138: 0.25 | AD138: 0.05 | AF138: 116.8214286 | AG138: -0.8571428571 | AI138: 65.01190476 | AJ138: -0.4761904762 | AK138: 64.81190476 | AL138: -0.4761904762 | AM138: 181.6333333 | AN138: -1.333333333 | AP138: 0.2816220076 | AQ138: -0.0002325147619 | AR138: =$AD138+(($AB138*$X$2)*$O$2/($S$2*$T$2)*$V$2) -> 0.08162200762 | AS138: -0.0002325147619 | AT138: 0.05 | AU138: 0 | AW138: 22.38540533 | AX138: -0.1627603333 | AY138: 22.18540533 | AZ138: -0.1627603333 | BB138: 0.5763857624 | BC138: -0.0003778364881
AB139: 137 | AC139: 0.25 | AD139: 0.05 | AF139: 117.6785714 | AG139: -0.8571428571 | AI139: 65.48809524 | AJ139: -0.4761904762 | AK139: 65.28809524 | AL139: -0.4761904762 | AM139: 182.9666667 | AN139: -1.333333333 | AP139: 0.2818545224 | AQ139: -0.0002325147619 | AR139: 0.08185452238 | AS139: -0.0002325147619 | AT139: 0.05 | AU139: 0 | AW139: 22.54816567 | AX139: -0.1627603333 | AY139: 22.34816567 | AZ139: -0.1627603333 | BB139: 0.5767635989 | BC139: -0.0003778364881
AB140: 138 | AC140: 0.25 | AD140: 0.05 | AF140: 118.5357143 | AG140: -0.8571428571 | AI140: 65.96428571 | AJ140: -0.4761904762 | AK140: 65.76428571 | AL140: -0.4761904762 | AM140: 184.3 | AN140: -1.333333333 | AP140: 0.2820870371 | AQ140: -0.0002325147619 | AR140: 0.08208703714 | AS140: -0.0002325147619 | AT140: 0.05 | AU140: 0 | AW140: 22.710926 | AX140: -0.1627603333 | AY140: 22.510926 | AZ140: -0.1627603333 | BB140: 0.5771414354 | BC140: -0.0003778364881
AB141: 139 | AC141: 0.25 | AD141: 0.05 | AF141: 119.3928571 | AG141: -0.8571428571 | AI141: 66.44047619 | AJ141: -0.4761904762 | AK141: 66.24047619 | AL141: -0.4761904762 | AM141: 185.6333333 | AN141: -1.333333333 | AP141: 0.2823195519 | AQ141: -0.0002325147619 | AR141: 0.0823195519 | AS141: -0.0002325147619 | AT141: 0.05 | AU141: 0 | AW141: 22.87368633 | AX141: -0.1627603333 | AY141: 22.67368633 | AZ141: -0.1627603333 | BB141: 0.5775192718 | BC141: -0.0003778364881
AB142: 140 | AC142: 0.25 | AD142: 0.05 | AF142: 120.25 | AG142: -0.8571428571 | AI142: 66.91666667 | AJ142: -0.4761904762 | AK142: 66.71666667 | AL142: -0.4761904762 | AM142: 186.9666667 | AN142: -1.333333333 | AP142: 0.2825520667 | AQ142: -0.0002325147619 | AR142: 0.08255206667 | AS142: -0.0002325147619 | AT142: 0.05 | AU142: 0 | AW142: 23.03644667 | AX142: -0.1627603333 | AY142: 22.83644667 | AZ142: -0.1627603333 | BB142: 0.5778971083 | BC142: -0.0003778364881
AB143: 141 | AC143: 0.25 | AD143: 0.05 | AF143: 121.1071429 | AG143: -0.8571428571 | AI143: 67.39285714 | AJ143: -0.4761904762 | AK143: 67.19285714 | AL143: -0.4761904762 | AM143: 188.3 | AN143: -1.333333333 | AP143: 0.2827845814 | AQ143: -0.0002325147619 | AR143: 0.08278458143 | AS143: -0.0002325147619 | AT143: 0.05 | AU143: 0 | AW143: 23.199207 | AX143: -0.1627603333 | AY143: 22.999207 | AZ143: -0.1627603333 | BB143: 0.5782749448 | BC143: -0.0003778364881
AB144: 142 | AC144: 0.25 | AD144: 0.05 | AF144: 121.9642857 | AG144: -0.8571428571 | AI144: 67.86904762 | AJ144: -0.4761904762 | AK144: 67.66904762 | AL144: -0.4761904762 | AM144: 189.6333333 | AN144: -1.333333333 | AP144: 0.2830170962 | AQ144: -0.0002325147619 | AR144: 0.08301709619 | AS144: -0.0002325147619 | AT144: 0.05 | AU144: 0 | AW144: 23.36196733 | AX144: -0.1627603333 | AY144: 23.16196733 | AZ144: -0.1627603333 | BB144: 0.5786527813 | BC144: -0.0003778364881
AB145: 143 | AC145: 0.25 | AD145: 0.05 | AF145: 122.8214286 | AG145: -0.8571428571 | AI145: 68.3452381 | AJ145: -0.4761904762 | AK145: 68.1452381 | AL145: -0.4761904762 | AM145: 190.9666667 | AN145: -1.333333333 | AP145: 0.283249611 | AQ145: -0.0002325147619 | AR145: 0.08324961095 | AS145: -0.0002325147619 | AT145: 0.05 | AU145: 0 | AW145: 23.52472767 | AX145: -0.1627603333 | AY145: 23.32472767 | AZ145: -0.1627603333 | BB145: 0.5790306178 | BC145: -0.0003778364881
AB146: 144 | AC146: 0.25 | AD146: 0.05 | AF146: 123.6785714 | AG146: -0.8571428571 | AI146: 68.82142857 | AJ146: -0.4761904762 | AK146: 68.62142857 | AL146: -0.4761904762 | AM146: 192.3 | AN146: -1.333333333 | AP146: 0.2834821257 | AQ146: -0.0002325147619 | AR146: 0.08348212571 | AS146: -0.0002325147619 | AT146: 0.05 | AU146: 0 | AW146: 23.687488 | AX146: -0.1627603333 | AY146: 23.487488 | AZ146: -0.1627603333 | BB146: 0.5794084543 | BC146: -0.0003778364881
AB147: 145 | AC147: 0.25 | AD147: 0.05 | AF147: 124.5357143 | AG147: -0.8571428571 | AI147: 69.29761905 | AJ147: -0.4761904762 | AK147: 69.09761905 | AL147: -0.4761904762 | AM147: 193.6333333 | AN147: -1.333333333 | AP147: 0.2837146405 | AQ147: -0.0002325147619 | AR147: 0.08371464048 | AS147: -0.0002325147619 | AT147: 0.05 | AU147: 0 | AW147: 23.85024833 | AX147: -0.1627603333 | AY147: 23.65024833 | AZ147: -0.1627603333 | BB147: 0.5797862908 | BC147: -0.0003778364881
AB148: 146 | AC148: 0.25 | AD148: 0.05 | AF148: 125.3928571 | AG148: -0.8571428571 | AI148: 69.77380952 | AJ148: -0.4761904762 | AK148: 69.57380952 | AL148: -0.4761904762 | AM148: 194.9666667 | AN148: -1.333333333 | AP148: 0.2839471552 | AQ148: -0.0002325147619 | AR148: 0.08394715524 | AS148: -0.0002325147619 | AT148: 0.05 | AU148: 0 | AW148: 24.01300867 | AX148: -0.1627603333 | AY148: 23.81300867 | AZ148: -0.1627603333 | BB148: 0.5801641273 | BC148: -0.0003778364881
AB149: 147 | AC149: 0.25 | AD149: 0.05 | AF149: 126.25 | AG149: -0.8571428571 | AI149: 70.25 | AJ149: -0.4761904762 | AK149: 70.05 | AL149: -0.4761904762 | AM149: 196.3 | AN149: -1.333333333 | AP149: 0.28417967 | AQ149: -0.0002325147619 | AR149: 0.08417967 | AS149: -0.0002325147619 | AT149: 0.05 | AU149: 0 | AW149: 24.175769 | AX149: -0.1627603333 | AY149: 23.975769 | AZ149: -0.1627603333 | BB149: 0.5805419638 | BC149: -0.0003778364881
AB150: 148 | AC150: 0.25 | AD150: 0.05 | AF150: 127.1071429 | AG150: -0.8571428571 | AI150: 70.72619048 | AJ150: -0.4761904762 | AK150: 70.52619048 | AL150: -0.4761904762 | AM150: 197.6333333 | AN150: -1.333333333 | AP150: 0.2844121848 | AQ150: -0.0002325147619 | AR150: 0.08441218476 | AS150: -0.0002325147619 | AT150: 0.05 | AU150: 0 | AW150: 24.33852933 | AX150: -0.1627603333 | AY150: 24.13852933 | AZ150: -0.1627603333 | BB150: 0.5809198002 | BC150: -0.0003778364881
AB151: 149 | AC151: 0.25 | AD151: 0.05 | AF151: 127.9642857 | AG151: -0.8571428571 | AI151: 71.20238095 | AJ151: -0.4761904762 | AK151: 71.00238095 | AL151: -0.4761904762 | AM151: 198.9666667 | AN151: -1.333333333 | AP151: 0.2846446995 | AQ151: -0.0002325147619 | AR151: 0.08464469952 | AS151: -0.0002325147619 | AT151: 0.05 | AU151: 0 | AW151: 24.50128967 | AX151: -0.1627603333 | AY151: 24.30128967 | AZ151: -0.1627603333 | BB151: 0.5812976367 | BC151: -0.0003778364881
AB152: 150 | AC152: 0.25 | AD152: 0.05 | AF152: 128.8214286 | AG152: -0.8571428571 | AI152: 71.67857143 | AJ152: -0.4761904762 | AK152: 71.47857143 | AL152: -0.4761904762 | AM152: 200.3 | AN152: -1.333333333 | AP152: 0.2848772143 | AQ152: -0.0002325147619 | AR152: 0.08487721429 | AS152: -0.0002325147619 | AT152: 0.05 | AU152: 0 | AW152: 24.66405 | AX152: -0.1627603333 | AY152: 24.46405 | AZ152: -0.1627603333 | BB152: 0.5816754732 | BC152: -0.0003778364881
AB153: 151 | AC153: 0.25 | AD153: 0.05 | AF153: 129.6785714 | AG153: -0.8571428571 | AI153: 72.1547619 | AJ153: -0.4761904762 | AK153: 71.9547619 | AL153: -0.4761904762 | AM153: 201.6333333 | AN153: -1.333333333 | AP153: 0.285109729 | AQ153: -0.0002325147619 | AR153: 0.08510972905 | AS153: -0.0002325147619 | AT153: 0.05 | AU153: 0 | AW153: 24.82681033 | AX153: -0.1627603333 | AY153: 24.62681033 | AZ153: -0.1627603333 | BB153: 0.5820533097 | BC153: -0.0003778364881
AB154: 152 | AC154: 0.25 | AD154: 0.05 | AF154: 130.5357143 | AG154: -0.8571428571 | AI154: 72.63095238 | AJ154: -0.4761904762 | AK154: 72.43095238 | AL154: -0.4761904762 | AM154: 202.9666667 | AN154: -1.333333333 | AP154: 0.2853422438 | AQ154: -0.0002325147619 | AR154: 0.08534224381 | AS154: -0.0002325147619 | AT154: 0.05 | AU154: 0 | AW154: 24.98957067 | AX154: -0.1627603333 | AY154: 24.78957067 | AZ154: -0.1627603333 | BB154: 0.5824311462 | BC154: -0.0003778364881
AB155: 153 | AC155: 0.25 | AD155: 0.05 | AF155: 131.3928571 | AG155: -0.8571428571 | AI155: 73.10714286 | AJ155: -0.4761904762 | AK155: 72.90714286 | AL155: -0.4761904762 | AM155: 204.3 | AN155: -1.333333333 | AP155: 0.2855747586 | AQ155: -0.0002325147619 | AR155: 0.08557475857 | AS155: -0.0002325147619 | AT155: 0.05 | AU155: 0 | AW155: 25.152331 | AX155: -0.1627603333 | AY155: 24.952331 | AZ155: -0.1627603333 | BB155: 0.5828089827 | BC155: -0.0003778364881
AB156: 154 | AC156: 0.25 | AD156: 0.05 | AF156: 132.25 | AG156: -0.8571428571 | AI156: 73.58333333 | AJ156: -0.4761904762 | AK156: 73.38333333 | AL156: -0.4761904762 | AM156: 205.6333333 | AN156: -1.333333333 | AP156: 0.2858072733 | AQ156: -0.0002325147619 | AR156: 0.08580727333 | AS156: -0.0002325147619 | AT156: 0.05 | AU156: 0 | AW156: 25.31509133 | AX156: -0.1627603333 | AY156: 25.11509133 | AZ156: -0.1627603333 | BB156: 0.5831868192 | BC156: -0.0003778364881
AB157: 155 | AC157: 0.25 | AD157: 0.05 | AF157: 133.1071429 | AG157: -0.8571428571 | AI157: 74.05952381 | AJ157: -0.4761904762 | AK157: 73.85952381 | AL157: -0.4761904762 | AM157: 206.9666667 | AN157: -1.333333333 | AP157: 0.2860397881 | AQ157: -0.0002325147619 | AR157: 0.0860397881 | AS157: -0.0002325147619 | AT157: 0.05 | AU157: 0 | AW157: 25.47785167 | AX157: -0.1627603333 | AY157: 25.27785167 | AZ157: -0.1627603333 | BB157: 0.5835646557 | BC157: -0.0003778364881
AB158: 156 | AC158: 0.25 | AD158: 0.05 | AF158: 133.9642857 | AG158: -0.8571428571 | AI158: 74.53571429 | AJ158: -0.4761904762 | AK158: 74.33571429 | AL158: -0.4761904762 | AM158: 208.3 | AN158: -1.333333333 | AP158: 0.2862723029 | AQ158: -0.0002325147619 | AR158: 0.08627230286 | AS158: -0.0002325147619 | AT158: 0.05 | AU158: 0 | AW158: 25.640612 | AX158: -0.1627603333 | AY158: 25.440612 | AZ158: -0.1627603333 | BB158: 0.5839424921 | BC158: -0.0003778364881
AB159: 157 | AC159: 0.25 | AD159: 0.05 | AF159: 134.8214286 | AG159: -0.8571428571 | AI159: 75.01190476 | AJ159: -0.4761904762 | AK159: 74.81190476 | AL159: -0.4761904762 | AM159: 209.6333333 | AN159: -1.333333333 | AP159: 0.2865048176 | AQ159: -0.0002325147619 | AR159: 0.08650481762 | AS159: -0.0002325147619 | AT159: 0.05 | AU159: 0 | AW159: 25.80337233 | AX159: -0.1627603333 | AY159: 25.60337233 | AZ159: -0.1627603333 | BB159: 0.5843203286 | BC159: -0.0003778364881
AB160: 158 | AC160: 0.25 | AD160: 0.05 | AF160: 135.6785714 | AG160: -0.8571428571 | AI160: 75.48809524 | AJ160: -0.4761904762 | AK160: 75.28809524 | AL160: -0.4761904762 | AM160: 210.9666667 | AN160: -1.333333333 | AP160: 0.2867373324 | AQ160: -0.0002325147619 | AR160: 0.08673733238 | AS160: -0.0002325147619 | AT160: 0.05 | AU160: 0 | AW160: 25.96613267 | AX160: -0.1627603333 | AY160: 25.76613267 | AZ160: -0.1627603333 | BB160: 0.5846981651 | BC160: -0.0003778364881
AB161: 159 | AC161: 0.25 | AD161: 0.05 | AF161: 136.5357143 | AG161: -0.8571428571 | AI161: 75.96428571 | AJ161: -0.4761904762 | AK161: 75.76428571 | AL161: -0.4761904762 | AM161: 212.3 | AN161: -1.333333333 | AP161: 0.2869698471 | AQ161: -0.0002325147619 | AR161: 0.08696984714 | AS161: -0.0002325147619 | AT161: 0.05 | AU161: 0 | AW161: 26.128893 | AX161: -0.1627603333 | AY161: 25.928893 | AZ161: -0.1627603333 | BB161: 0.5850760016 | BC161: -0.0003778364881
AB162: 160 | AC162: 0.25 | AD162: 0.05 | AF162: 137.3928571 | AG162: -0.8571428571 | AI162: 76.44047619 | AJ162: -0.4761904762 | AK162: 76.24047619 | AL162: -0.4761904762 | AM162: 213.6333333 | AN162: -1.333333333 | AP162: 0.2872023619 | AQ162: -0.0002325147619 | AR162: 0.0872023619 | AS162: -0.0002325147619 | AT162: 0.05 | AU162: 0 | AW162: 26.29165333 | AX162: -0.1627603333 | AY162: 26.09165333 | AZ162: -0.1627603333 | BB162: 0.5854538381 | BC162: -0.0003778364881
AB163: 161 | AC163: 0.25 | AD163: 0.05 | AF163: 138.25 | AG163: -0.8571428571 | AI163: 76.91666667 | AJ163: -0.4761904762 | AK163: 76.71666667 | AL163: -0.4761904762 | AM163: 214.9666667 | AN163: -1.333333333 | AP163: 0.2874348767 | AQ163: -0.0002325147619 | AR163: 0.08743487667 | AS163: -0.0002325147619 | AT163: 0.05 | AU163: 0 | AW163: 26.45441367 | AX163: -0.1627603333 | AY163: 26.25441367 | AZ163: -0.1627603333 | BB163: 0.5858316746 | BC163: -0.0003778364881
AB164: 162 | AC164: 0.25 | AD164: 0.05 | AF164: 139.1071429 | AG164: -0.8571428571 | AI164: 77.39285714 | AJ164: -0.4761904762 | AK164: 77.19285714 | AL164: -0.4761904762 | AM164: 216.3 | AN164: -1.333333333 | AP164: 0.2876673914 | AQ164: -0.0002325147619 | AR164: 0.08766739143 | AS164: -0.0002325147619 | AT164: 0.05 | AU164: 0 | AW164: 26.617174 | AX164: -0.1627603333 | AY164: 26.417174 | AZ164: -0.1627603333 | BB164: 0.5862095111 | BC164: -0.0003778364881
AB165: 163 | AC165: 0.25 | AD165: 0.05 | AF165: 139.9642857 | AG165: -0.8571428571 | AI165: 77.86904762 | AJ165: -0.4761904762 | AK165: 77.66904762 | AL165: -0.4761904762 | AM165: 217.6333333 | AN165: -1.333333333 | AP165: 0.2878999062 | AQ165: -0.0002325147619 | AR165: 0.08789990619 | AS165: -0.0002325147619 | AT165: 0.05 | AU165: 0 | AW165: 26.77993433 | AX165: -0.1627603333 | AY165: 26.57993433 | AZ165: -0.1627603333 | BB165: 0.5865873476 | BC165: -0.0003778364881
AB166: 164 | AC166: 0.25 | AD166: 0.05 | AF166: 140.8214286 | AG166: -0.8571428571 | AI166: 78.3452381 | AJ166: -0.4761904762 | AK166: 78.1452381 | AL166: -0.4761904762 | AM166: 218.9666667 | AN166: -1.333333333 | AP166: 0.288132421 | AQ166: -0.0002325147619 | AR166: 0.08813242095 | AS166: -0.0002325147619 | AT166: 0.05 | AU166: 0 | AW166: 26.94269467 | AX166: -0.1627603333 | AY166: 26.74269467 | AZ166: -0.1627603333 | BB166: 0.586965184 | BC166: -0.0003778364881
AB167: 165 | AC167: 0.25 | AD167: 0.05 | AF167: 141.6785714 | AG167: -0.8571428571 | AI167: 78.82142857 | AJ167: -0.4761904762 | AK167: 78.62142857 | AL167: -0.4761904762 | AM167: 220.3 | AN167: -1.333333333 | AP167: 0.2883649357 | AQ167: -0.0002325147619 | AR167: 0.08836493571 | AS167: -0.0002325147619 | AT167: 0.05 | AU167: 0 | AW167: 27.105455 | AX167: -0.1627603333 | AY167: 26.905455 | AZ167: -0.1627603333 | BB167: 0.5873430205 | BC167: -0.0003778364881
AB168: 166 | AC168: 0.25 | AD168: 0.05 | AF168: 142.5357143 | AG168: -0.8571428571 | AI168: 79.29761905 | AJ168: -0.4761904762 | AK168: 79.09761905 | AL168: -0.4761904762 | AM168: 221.6333333 | AN168: -1.333333333 | AP168: 0.2885974505 | AQ168: -0.0002325147619 | AR168: 0.08859745048 | AS168: -0.0002325147619 | AT168: 0.05 | AU168: 0 | AW168: 27.26821533 | AX168: -0.1627603333 | AY168: 27.06821533 | AZ168: -0.1627603333 | BB168: 0.587720857 | BC168: -0.0003778364881
AB169: =AB168+1 -> 167 | AC169: 0.25 | AD169: 0.05 | AF169: 143.3928571 | AG169: -0.8571428571 | AI169: 79.77380952 | AJ169: -0.4761904762 | AK169: 79.57380952 | AL169: -0.4761904762 | AM169: 222.9666667 | AN169: -1.333333333 | AP169: 0.2888299652 | AQ169: -0.0002325147619 | AR169: 0.08882996524 | AS169: -0.0002325147619 | AT169: 0.05 | AU169: 0 | AW169: 27.43097567 | AX169: -0.1627603333 | AY169: 27.23097567 | AZ169: -0.1627603333 | BB169: 0.5880986935 | BC169: -0.0003778364881
AB170: 168 | AC170: 0.25 | AD170: 0.05 | AF170: 144.25 | AG170: -0.8571428571 | AI170: 80.25 | AJ170: -0.4761904762 | AK170: 80.05 | AL170: -0.4761904762 | AM170: 224.3 | AN170: -1.333333333 | AP170: 0.28906248 | AQ170: -0.0002325147619 | AR170: 0.08906248 | AS170: -0.0002325147619 | AT170: 0.05 | AU170: 0 | AW170: 27.593736 | AX170: -0.1627603333 | AY170: 27.393736 | AZ170: -0.1627603333 | BB170: 0.58847653 | BC170: -0.0003778364881
AB171: 169 | AC171: 0.25 | AD171: 0.05 | AF171: 145.1071429 | AG171: -0.8571428571 | AI171: 80.72619048 | AJ171: -0.4761904762 | AK171: 80.52619048 | AL171: -0.4761904762 | AM171: 225.6333333 | AN171: -1.333333333 | AP171: 0.2892949948 | AQ171: -0.0002325147619 | AR171: 0.08929499476 | AS171: -0.0002325147619 | AT171: 0.05 | AU171: 0 | AW171: 27.75649633 | AX171: -0.1627603333 | AY171: 27.55649633 | AZ171: -0.1627603333 | BB171: 0.5888543665 | BC171: -0.0003778364881
AB172: 170 | AC172: 0.25 | AD172: 0.05 | AF172: 145.9642857 | AG172: -0.8571428571 | AI172: 81.20238095 | AJ172: -0.4761904762 | AK172: 81.00238095 | AL172: -0.4761904762 | AM172: 226.9666667 | AN172: -1.333333333 | AP172: 0.2895275095 | AQ172: -0.0002325147619 | AR172: 0.08952750952 | AS172: -0.0002325147619 | AT172: 0.05 | AU172: 0 | AW172: 27.91925667 | AX172: -0.1627603333 | AY172: 27.71925667 | AZ172: -0.1627603333 | BB172: 0.589232203 | BC172: -0.0003778364881
AB173: 171 | AC173: 0.25 | AD173: 0.05 | AF173: 146.8214286 | AG173: -0.8571428571 | AI173: 81.67857143 | AJ173: -0.4761904762 | AK173: 81.47857143 | AL173: -0.4761904762 | AM173: 228.3 | AN173: -1.333333333 | AP173: 0.2897600243 | AQ173: -0.0002325147619 | AR173: 0.08976002429 | AS173: -0.0002325147619 | AT173: 0.05 | AU173: 0 | AW173: 28.082017 | AX173: -0.1627603333 | AY173: 27.882017 | AZ173: -0.1627603333 | BB173: 0.5896100395 | BC173: -0.0003778364881
AB174: 172 | AC174: 0.25 | AD174: 0.05 | AF174: 147.6785714 | AG174: -0.8571428571 | AI174: 82.1547619 | AJ174: -0.4761904762 | AK174: 81.9547619 | AL174: -0.4761904762 | AM174: 229.6333333 | AN174: -1.333333333 | AP174: 0.289992539 | AQ174: -0.0002325147619 | AR174: 0.08999253905 | AS174: -0.0002325147619 | AT174: 0.05 | AU174: 0 | AW174: 28.24477733 | AX174: -0.1627603333 | AY174: 28.04477733 | AZ174: -0.1627603333 | BB174: 0.589987876 | BC174: -0.0003778364881
AB175: 173 | AC175: 0.25 | AD175: 0.05 | AF175: 148.5357143 | AG175: -0.8571428571 | AI175: 82.63095238 | AJ175: -0.4761904762 | AK175: 82.43095238 | AL175: -0.4761904762 | AM175: 230.9666667 | AN175: -1.333333333 | AP175: 0.2902250538 | AQ175: -0.0002325147619 | AR175: 0.09022505381 | AS175: -0.0002325147619 | AT175: 0.05 | AU175: 0 | AW175: 28.40753767 | AX175: -0.1627603333 | AY175: 28.20753767 | AZ175: -0.1627603333 | BB175: 0.5903657124 | BC175: -0.0003778364881
AB176: 174 | AC176: 0.25 | AD176: 0.05 | AF176: 149.3928571 | AG176: -0.8571428571 | AI176: 83.10714286 | AJ176: -0.4761904762 | AK176: 82.90714286 | AL176: -0.4761904762 | AM176: 232.3 | AN176: -1.333333333 | AP176: 0.2904575686 | AQ176: -0.0002325147619 | AR176: 0.09045756857 | AS176: -0.0002325147619 | AT176: 0.05 | AU176: 0 | AW176: 28.570298 | AX176: -0.1627603333 | AY176: 28.370298 | AZ176: -0.1627603333 | BB176: 0.5907435489 | BC176: -0.0003778364881
AB177: 175 | AC177: 0.25 | AD177: 0.05 | AF177: 150.25 | AG177: -0.8571428571 | AI177: 83.58333333 | AJ177: -0.4761904762 | AK177: 83.38333333 | AL177: -0.4761904762 | AM177: 233.6333333 | AN177: -1.333333333 | AP177: 0.2906900833 | AQ177: -0.0002325147619 | AR177: 0.09069008333 | AS177: -0.0002325147619 | AT177: 0.05 | AU177: 0 | AW177: 28.73305833 | AX177: -0.1627603333 | AY177: 28.53305833 | AZ177: -0.1627603333 | BB177: 0.5911213854 | BC177: -0.0003778364881
AB178: 176 | AC178: 0.25 | AD178: 0.05 | AF178: 151.1071429 | AG178: -0.8571428571 | AI178: 84.05952381 | AJ178: -0.4761904762 | AK178: 83.85952381 | AL178: -0.4761904762 | AM178: 234.9666667 | AN178: -1.333333333 | AP178: 0.2909225981 | AQ178: -0.0002325147619 | AR178: 0.0909225981 | AS178: -0.0002325147619 | AT178: 0.05 | AU178: 0 | AW178: 28.89581867 | AX178: -0.1627603333 | AY178: 28.69581867 | AZ178: -0.1627603333 | BB178: 0.5914992219 | BC178: -0.0003778364881
AB179: 177 | AC179: 0.25 | AD179: 0.05 | AF179: 151.9642857 | AG179: -0.8571428571 | AI179: 84.53571429 | AJ179: -0.4761904762 | AK179: 84.33571429 | AL179: -0.4761904762 | AM179: 236.3 | AN179: -1.333333333 | AP179: 0.2911551129 | AQ179: -0.0002325147619 | AR179: 0.09115511286 | AS179: -0.0002325147619 | AT179: 0.05 | AU179: 0 | AW179: 29.058579 | AX179: -0.1627603333 | AY179: 28.858579 | AZ179: -0.1627603333 | BB179: 0.5918770584 | BC179: -0.0003778364881
AB180: 178 | AC180: 0.25 | AD180: 0.05 | AF180: 152.8214286 | AG180: -0.8571428571 | AI180: 85.01190476 | AJ180: -0.4761904762 | AK180: 84.81190476 | AL180: -0.4761904762 | AM180: 237.6333333 | AN180: -1.333333333 | AP180: 0.2913876276 | AQ180: -0.0002325147619 | AR180: 0.09138762762 | AS180: -0.0002325147619 | AT180: 0.05 | AU180: 0 | AW180: 29.22133933 | AX180: -0.1627603333 | AY180: 29.02133933 | AZ180: -0.1627603333 | BB180: 0.5922548949 | BC180: -0.0003778364881
AB181: 179 | AC181: 0.25 | AD181: 0.05 | AF181: 153.6785714 | AG181: -0.8571428571 | AI181: 85.48809524 | AJ181: -0.4761904762 | AK181: 85.28809524 | AL181: -0.4761904762 | AM181: 238.9666667 | AN181: -1.333333333 | AP181: 0.2916201424 | AQ181: -0.0002325147619 | AR181: 0.09162014238 | AS181: -0.0002325147619 | AT181: 0.05 | AU181: 0 | AW181: 29.38409967 | AX181: -0.1627603333 | AY181: 29.18409967 | AZ181: -0.1627603333 | BB181: 0.5926327314 | BC181: -0.0003778364881
AB182: 180 | AC182: 0.25 | AD182: 0.05 | AF182: 154.5357143 | AG182: -0.8571428571 | AI182: 85.96428571 | AJ182: -0.4761904762 | AK182: 85.76428571 | AL182: -0.4761904762 | AM182: 240.3 | AN182: -1.333333333 | AP182: 0.2918526571 | AQ182: -0.0002325147619 | AR182: 0.09185265714 | AS182: -0.0002325147619 | AT182: 0.05 | AU182: 0 | AW182: 29.54686 | AX182: -0.1627603333 | AY182: 29.34686 | AZ182: -0.1627603333 | BB182: 0.5930105679 | BC182: -0.0003778364881
AB183: 181 | AC183: 0.25 | AD183: 0.05 | AF183: 155.3928571 | AG183: -0.8571428571 | AI183: 86.44047619 | AJ183: -0.4761904762 | AK183: 86.24047619 | AL183: -0.4761904762 | AM183: 241.6333333 | AN183: -1.333333333 | AP183: 0.2920851719 | AQ183: -0.0002325147619 | AR183: 0.0920851719 | AS183: -0.0002325147619 | AT183: 0.05 | AU183: 0 | AW183: 29.70962033 | AX183: -0.1627603333 | AY183: 29.50962033 | AZ183: -0.1627603333 | BB183: 0.5933884043 | BC183: -0.0003778364881
AB184: 182 | AC184: 0.25 | AD184: 0.05 | AF184: 156.25 | AG184: -0.8571428571 | AI184: 86.91666667 | AJ184: -0.4761904762 | AK184: 86.71666667 | AL184: -0.4761904762 | AM184: 242.9666667 | AN184: -1.333333333 | AP184: 0.2923176867 | AQ184: -0.0002325147619 | AR184: 0.09231768667 | AS184: -0.0002325147619 | AT184: 0.05 | AU184: 0 | AW184: 29.87238067 | AX184: -0.1627603333 | AY184: 29.67238067 | AZ184: -0.1627603333 | BB184: 0.5937662408 | BC184: -0.0003778364881
AB185: 183 | AC185: 0.25 | AD185: 0.05 | AF185: 157.1071429 | AG185: -0.8571428571 | AI185: 87.39285714 | AJ185: -0.4761904762 | AK185: 87.19285714 | AL185: -0.4761904762 | AM185: 244.3 | AN185: -1.333333333 | AP185: 0.2925502014 | AQ185: -0.0002325147619 | AR185: 0.09255020143 | AS185: -0.0002325147619 | AT185: 0.05 | AU185: 0 | AW185: 30.035141 | AX185: -0.1627603333 | AY185: 29.835141 | AZ185: -0.1627603333 | BB185: 0.5941440773 | BC185: -0.0003778364881
AB186: 184 | AC186: 0.25 | AD186: 0.05 | AF186: 157.9642857 | AG186: -0.8571428571 | AI186: 87.86904762 | AJ186: -0.4761904762 | AK186: 87.66904762 | AL186: -0.4761904762 | AM186: 245.6333333 | AN186: -1.333333333 | AP186: 0.2927827162 | AQ186: -0.0002325147619 | AR186: 0.09278271619 | AS186: -0.0002325147619 | AT186: 0.05 | AU186: 0 | AW186: 30.19790133 | AX186: -0.1627603333 | AY186: 29.99790133 | AZ186: -0.1627603333 | BB186: 0.5945219138 | BC186: -0.0003778364881
AB187: 185 | AC187: 0.25 | AD187: 0.05 | AF187: 158.8214286 | AG187: -0.8571428571 | AI187: 88.3452381 | AJ187: -0.4761904762 | AK187: 88.1452381 | AL187: -0.4761904762 | AM187: 246.9666667 | AN187: -1.333333333 | AP187: 0.293015231 | AQ187: -0.0002325147619 | AR187: 0.09301523095 | AS187: -0.0002325147619 | AT187: 0.05 | AU187: 0 | AW187: 30.36066167 | AX187: -0.1627603333 | AY187: 30.16066167 | AZ187: -0.1627603333 | BB187: 0.5948997503 | BC187: -0.0003778364881
AB188: 186 | AC188: 0.25 | AD188: 0.05 | AF188: 159.6785714 | AG188: -0.8571428571 | AI188: 88.82142857 | AJ188: -0.4761904762 | AK188: 88.62142857 | AL188: -0.4761904762 | AM188: 248.3 | AN188: -1.333333333 | AP188: 0.2932477457 | AQ188: -0.0002325147619 | AR188: 0.09324774571 | AS188: -0.0002325147619 | AT188: 0.05 | AU188: 0 | AW188: 30.523422 | AX188: -0.1627603333 | AY188: 30.323422 | AZ188: -0.1627603333 | BB188: 0.5952775868 | BC188: -0.0003778364881
AB189: 187 | AC189: 0.25 | AD189: 0.05 | AF189: 160.5357143 | AG189: -0.8571428571 | AI189: 89.29761905 | AJ189: -0.4761904762 | AK189: 89.09761905 | AL189: -0.4761904762 | AM189: 249.6333333 | AN189: -1.333333333 | AP189: 0.2934802605 | AQ189: -0.0002325147619 | AR189: 0.09348026048 | AS189: -0.0002325147619 | AT189: 0.05 | AU189: 0 | AW189: 30.68618233 | AX189: -0.1627603333 | AY189: 30.48618233 | AZ189: -0.1627603333 | BB189: 0.5956554233 | BC189: -0.0003778364881
AB190: 188 | AC190: 0.25 | AD190: 0.05 | AF190: 161.3928571 | AG190: -0.8571428571 | AI190: 89.77380952 | AJ190: -0.4761904762 | AK190: 89.57380952 | AL190: -0.4761904762 | AM190: 250.9666667 | AN190: -1.333333333 | AP190: 0.2937127752 | AQ190: -0.0002325147619 | AR190: 0.09371277524 | AS190: -0.0002325147619 | AT190: 0.05 | AU190: 0 | AW190: 30.84894267 | AX190: -0.1627603333 | AY190: 30.64894267 | AZ190: -0.1627603333 | BB190: 0.5960332598 | BC190: -0.0003778364881
AB191: 189 | AC191: 0.25 | AD191: 0.05 | AF191: 162.25 | AG191: -0.8571428571 | AI191: 90.25 | AJ191: -0.4761904762 | AK191: 90.05 | AL191: -0.4761904762 | AM191: 252.3 | AN191: -1.333333333 | AP191: 0.29394529 | AQ191: -0.0002325147619 | AR191: 0.09394529 | AS191: -0.0002325147619 | AT191: 0.05 | AU191: 0 | AW191: 31.011703 | AX191: -0.1627603333 | AY191: 30.811703 | AZ191: -0.1627603333 | BB191: 0.5964110962 | BC191: -0.0003778364881
AB192: 190 | AC192: 0.25 | AD192: 0.05 | AF192: 163.1071429 | AG192: -0.8571428571 | AI192: 90.72619048 | AJ192: -0.4761904762 | AK192: 90.52619048 | AL192: -0.4761904762 | AM192: 253.6333333 | AN192: -1.333333333 | AP192: 0.2941778048 | AQ192: -0.0002325147619 | AR192: 0.09417780476 | AS192: -0.0002325147619 | AT192: 0.05 | AU192: 0 | AW192: 31.17446333 | AX192: -0.1627603333 | AY192: 30.97446333 | AZ192: -0.1627603333 | BB192: 0.5967889327 | BC192: -0.0003778364881
AB193: 191 | AC193: 0.25 | AD193: 0.05 | AF193: 163.9642857 | AG193: -0.8571428571 | AI193: 91.20238095 | AJ193: -0.4761904762 | AK193: 91.00238095 | AL193: -0.4761904762 | AM193: 254.9666667 | AN193: -1.333333333 | AP193: 0.2944103195 | AQ193: -0.0002325147619 | AR193: 0.09441031952 | AS193: -0.0002325147619 | AT193: 0.05 | AU193: 0 | AW193: 31.33722367 | AX193: -0.1627603333 | AY193: 31.13722367 | AZ193: -0.1627603333 | BB193: 0.5971667692 | BC193: -0.0003778364881
AB194: 192 | AC194: 0.25 | AD194: 0.05 | AF194: 164.8214286 | AG194: -0.8571428571 | AI194: 91.67857143 | AJ194: -0.4761904762 | AK194: 91.47857143 | AL194: -0.4761904762 | AM194: =AF194+AK194 -> 256.3 | AN194: -1.333333333 | AP194: 0.2946428343 | AQ194: -0.0002325147619 | AR194: 0.09464283429 | AS194: -0.0002325147619 | AT194: 0.05 | AU194: 0 | AW194: 31.499984 | AX194: -0.1627603333 | AY194: 31.299984 | AZ194: -0.1627603333 | BB194: 0.5975446057 | BC194: -0.0003778364881
AB195: 193 | AC195: 0.25 | AD195: 0.05 | AF195: 165.6785714 | AG195: =AF194-AF195 -> -0.8571428571 | AI195: 92.1547619 | AJ195: -0.4761904762 | AK195: 91.9547619 | AL195: -0.4761904762 | AM195: 257.6333333 | AN195: -1.333333333 | AP195: 0.294875349 | AQ195: -0.0002325147619 | AR195: 0.09487534905 | AS195: -0.0002325147619 | AT195: 0.05 | AU195: 0 | AW195: 31.66274433 | AX195: -0.1627603333 | AY195: 31.46274433 | AZ195: -0.1627603333 | BB195: 0.5979224422 | BC195: -0.0003778364881
AB196: 194 | AC196: 0.25 | AD196: 0.05 | AF196: 166.5357143 | AG196: -0.8571428571 | AI196: 92.63095238 | AJ196: =AI195-AI196 -> -0.4761904762 | AK196: =$AD196+(($AB196*$W$2)*$L$2/($S$2*$T$2)*$U$2) -> 92.43095238 | AL196: -0.4761904762 | AM196: 258.9666667 | AN196: -1.333333333 | AP196: =$AC196+(($AB196*$X$2)*($O$2/($R$2*$T$2))) -> 0.2951078638 | AQ196: -0.0002325147619 | AR196: 0.09510786381 | AS196: -0.0002325147619 | AT196: =AD196 -> 0.05 | AU196: 0 | AW196: 31.82550467 | AX196: -0.1627603333 | AY196: =$AD196+(($AB196*$W$2)*$M$2/($S$2*$T$2)*$U$2) -> 31.62550467 | AZ196: -0.1627603333 | BB196: =$AC196+(($AB196*$X$2)*(($O$2+$P$2)/($R$2*$T$2)))+($G$2*1) -> 0.5983002787 | BC196: -0.0003778364881
AB197: 195 | AC197: =IF($AB197<$Y$4,$Y$2,(IF(($AC196-$Y$3)>0,$AC196-$Y$3,0))) -> 0.25 | AD197: =IF($AB197<$AA$4,$AA$2,(IF(($AD196-$AA$3)>0,$AD196-$AA$3,0))) -> 0.05 | AF197: =$AC197+(($AB197*$W$2)*$K$2/($Q$2*$T$2)) -> 167.3928571 | AG197: -0.8571428571 | AI197: =$AC197+(($AB197*$W$2)*$L$2/($Q$2*$T$2)) -> 93.10714286 | AJ197: =AI196-AI197 -> -0.4761904762 | AK197: 92.90714286 | AL197: -0.4761904762 | AM197: 260.3 | AN197: -1.333333333 | AP197: 0.2953403786 | AQ197: =AP196-AP197 -> -0.0002325147619 | AR197: 0.09534037857 | AS197: -0.0002325147619 | AT197: 0.05 | AU197: 0 | AW197: =$AC197+(($AB197*$W$2)*$M$2/($Q$2*$T$2)) -> 31.988265 | AX197: =AW196-AW197 -> -0.1627603333 | AY197: 31.788265 | AZ197: =AY196-AY197 -> -0.1627603333 | BB197: 0.5986781152 | BC197: =BB196-BB197 -> -0.0003778364881
AB198: 196 | AC198: 0.25 | AD198: 0.05 | AF198: 168.25 | AG198: -0.8571428571 | AI198: 93.58333333 | AJ198: -0.4761904762 | AK198: 93.38333333 | AL198: -0.4761904762 | AM198: 261.6333333 | AN198: -1.333333333 | AP198: 0.2955728933 | AQ198: -0.0002325147619 | AR198: 0.09557289333 | AS198: -0.0002325147619 | AT198: 0.05 | AU198: 0 | AW198: 32.15102533 | AX198: -0.1627603333 | AY198: 31.95102533 | AZ198: -0.1627603333 | BB198: 0.5990559517 | BC198: -0.0003778364881
AB199: 197 | AC199: 0.25 | AD199: 0.05 | AF199: 169.1071429 | AG199: -0.8571428571 | AI199: 94.05952381 | AJ199: -0.4761904762 | AK199: 93.85952381 | AL199: -0.4761904762 | AM199: 262.9666667 | AN199: -1.333333333 | AP199: 0.2958054081 | AQ199: -0.0002325147619 | AR199: 0.0958054081 | AS199: -0.0002325147619 | AT199: 0.05 | AU199: 0 | AW199: 32.31378567 | AX199: -0.1627603333 | AY199: 32.11378567 | AZ199: -0.1627603333 | BB199: 0.5994337882 | BC199: -0.0003778364881
AB200: 198 | AC200: 0.25 | AD200: 0.05 | AF200: 169.9642857 | AG200: -0.8571428571 | AI200: 94.53571429 | AJ200: -0.4761904762 | AK200: 94.33571429 | AL200: -0.4761904762 | AM200: 264.3 | AN200: -1.333333333 | AP200: 0.2960379229 | AQ200: -0.0002325147619 | AR200: 0.09603792286 | AS200: -0.0002325147619 | AT200: 0.05 | AU200: 0 | AW200: 32.476546 | AX200: -0.1627603333 | AY200: 32.276546 | AZ200: -0.1627603333 | BB200: 0.5998116246 | BC200: -0.0003778364881
... 925 more rows

Sheet Graph (hidden)
